Publisher Label,Publisher URI,"Supplier ID","Supplier","Invoice No.","Amount (£)","Purpose","Transaction Number","Payment Date","Organisational Unit","Cost Centre(T)","Internal Category Number"
"Wolverhampton City Council","http://opendatacommunities.org/id/metropolitan-district-council/wolverhampton","704649","Jacobs U.K.Limited","81018000 - 206 - 004","9.28","Services - Professional Fees","130172801","21/06/2017","Facilities Management","Civic Centre","R4400"
"Wolverhampton City Council","http://opendatacommunities.org/id/metropolitan-district-council/wolverhampton","704649","Jacobs U.K.Limited","B1018000 206 005","45.21","Services - Professional Fees","130172803","21/06/2017","School Planning & Resources","Building Schools for the Future (BSF)","R4400"
"Wolverhampton City Council","http://opendatacommunities.org/id/metropolitan-district-council/wolverhampton","704649","Jacobs U.K.Limited","B1018000 - 209 - 021","247.1","Services - Professional Fees","130174222","28/06/2017","Facilities Management","Management of Vacant Properties","R4400"
"Wolverhampton City Council","http://opendatacommunities.org/id/metropolitan-district-council/wolverhampton","704649","Jacobs U.K.Limited","B1018000 - 209 - 022","1,426.08","Services - Professional Fees","130174223","28/06/2017","Facilities Management","Civic Centre","R4400"
"Wolverhampton City Council","http://opendatacommunities.org/id/metropolitan-district-council/wolverhampton","704649","Jacobs U.K.Limited","B1018000-209-035","677.5","Services - Professional Fees","130174238","28/06/2017","Estates and Valuations","Estates and Valuations Team","R4400"
"Wolverhampton City Council","http://opendatacommunities.org/id/metropolitan-district-council/wolverhampton","704649","Jacobs U.K.Limited","B1018000-209-026","512.63","Construction and Conversion","130174237","28/06/2017","-","Primary Expansion Programme","C1100"
"Wolverhampton City Council","http://opendatacommunities.org/id/metropolitan-district-council/wolverhampton","704649","Jacobs U.K.Limited","B1018000 - 209 - 029","480","Construction and Conversion","130174464","28/06/2017","-","Structural works","C1100"
"Wolverhampton City Council","http://opendatacommunities.org/id/metropolitan-district-council/wolverhampton","704649","Jacobs U.K.Limited","B1018000 - 209 - 012","677.5","Construction and Conversion","130174463","28/06/2017","-","Heath Town","C1100"
"Wolverhampton City Council","http://opendatacommunities.org/id/metropolitan-district-council/wolverhampton","704649","Jacobs U.K.Limited","B1018000-209-006","1,429.36","Construction and Conversion","130174234","28/06/2017","-","Fire Safety Improvements","C1100"
"Wolverhampton City Council","http://opendatacommunities.org/id/metropolitan-district-council/wolverhampton","704649","Jacobs U.K.Limited","B1018000 - 206 - 010","1,447.47","Services - Professional Fees","130172810","21/06/2017","Maintenance Programme","Centralised R&M","R4400"
"Wolverhampton City Council","http://opendatacommunities.org/id/metropolitan-district-council/wolverhampton","704649","Jacobs U.K.Limited","B1018000 - 206 - 006","270.28","Services - Professional Fees","130172807","14/06/2017","Corporate Asset Management","Statutory Surveys","R4400"
"Wolverhampton City Council","http://opendatacommunities.org/id/metropolitan-district-council/wolverhampton","704649","Jacobs U.K.Limited","B1018000 - 206 - 008","95.24","Construction and Conversion","130172809","14/06/2017","-","Heath Town","C1100"
"Wolverhampton City Council","http://opendatacommunities.org/id/metropolitan-district-council/wolverhampton","704649","Jacobs U.K.Limited","81018000 - 206 - 009","46.4","Construction and Conversion","130172802","14/06/2017","-","Decent Homes - Stock Improvements","C1100"
"Wolverhampton City Council","http://opendatacommunities.org/id/metropolitan-district-council/wolverhampton","704649","Jacobs U.K.Limited","B1018000 - 208 - 006","10,928.72","Construction and Conversion","130169926","30/06/2017","-","Fire Safety Improvements","C1100"
"Wolverhampton City Council","http://opendatacommunities.org/id/metropolitan-district-council/wolverhampton","704649","Jacobs U.K.Limited","B1018000 - 206 - 002","38.28","Construction and Conversion","130172805","30/06/2017","-","Fire Safety Improvements","C1100"
"Wolverhampton City Council","http://opendatacommunities.org/id/metropolitan-district-council/wolverhampton","704649","Jacobs U.K.Limited","B1018000 - 206 - 007","132.8","Services - Professional Fees","130172808","14/06/2017","Capital Programme","Capital Programme Team work for external clients","R4400"
"Wolverhampton City Council","http://opendatacommunities.org/id/metropolitan-district-council/wolverhampton","704649","Jacobs U.K.Limited","B1018000 - 206 - 003","917.62","Construction and Conversion","130172806","14/06/2017","-","Decent Homes - Stock Improvements","C1100"
"Wolverhampton City Council","http://opendatacommunities.org/id/metropolitan-district-council/wolverhampton","704649","Jacobs U.K.Limited","B1018000 - 209 - 013","950.86","Services - Professional Fees","130174214","28/06/2017","Estates and Valuations","Estates and Valuations Team","R4400"
"Wolverhampton City Council","http://opendatacommunities.org/id/metropolitan-district-council/wolverhampton","704649","Jacobs U.K.Limited","B1018000 - 209 - 014","825","Services - Professional Fees","130174215","28/06/2017","Estates and Valuations","Estates and Valuations Team","R4400"
"Wolverhampton City Council","http://opendatacommunities.org/id/metropolitan-district-council/wolverhampton","704649","Jacobs U.K.Limited","B1018000 - 209 - 024","1,980.96","Construction and Conversion","130174224","28/06/2017","-","Decent Homes - Stock Improvements","C1100"
"Wolverhampton City Council","http://opendatacommunities.org/id/metropolitan-district-council/wolverhampton","704649","Jacobs U.K.Limited","B1018000 - 209 - 025","40,721.59","Construction and Conversion","130174225","28/06/2017","-","Decent Homes - Stock Improvements","C1100"
"Wolverhampton City Council","http://opendatacommunities.org/id/metropolitan-district-council/wolverhampton","704649","Jacobs U.K.Limited","B1018000 - 209 - 030","1,338.83","Construction and Conversion","130174227","28/06/2017","-","Structural works","C1100"
"Wolverhampton City Council","http://opendatacommunities.org/id/metropolitan-district-council/wolverhampton","704649","Jacobs U.K.Limited","B1018000 - 209 - 015","1,184.66","Services - Professional Fees","130174216","28/06/2017","Estates and Valuations","Estates and Valuations Team","R4400"
"Wolverhampton City Council","http://opendatacommunities.org/id/metropolitan-district-council/wolverhampton","704649","Jacobs U.K.Limited","B1018000 209 001","11,803.86","Construction and Conversion","130174232","28/06/2017","-","Black Country Growth Deal � Cultural Programme","C1100"
"Wolverhampton City Council","http://opendatacommunities.org/id/metropolitan-district-council/wolverhampton","704649","Jacobs U.K.Limited","B1018000 - 209 - 005","2,200.00","Construction and Conversion","130174210","28/06/2017","-","Black Country Growth Deal � Cultural Programme","C1100"
"Wolverhampton City Council","http://opendatacommunities.org/id/metropolitan-district-council/wolverhampton","704649","Jacobs U.K.Limited","B1018000-209-008","975","Services - Professional Fees","130174235","28/06/2017","Estates and Valuations","Disposal Costs","R4400"
"Wolverhampton City Council","http://opendatacommunities.org/id/metropolitan-district-council/wolverhampton","704649","Jacobs U.K.Limited","B1018000-209-011","3,059.84","Services - Professional Fees","130174236","28/06/2017","Estates and Valuations","Estates and Valuations Team","R4400"
"Wolverhampton City Council","http://opendatacommunities.org/id/metropolitan-district-council/wolverhampton","704649","Jacobs U.K.Limited","B1018000 - 209 - 033","2,435.32","Construction and Conversion","130174230","28/06/2017","-","Heath Town","C1100"
"Wolverhampton City Council","http://opendatacommunities.org/id/metropolitan-district-council/wolverhampton","704649","Jacobs U.K.Limited","B1018000 - 209 - 018","983.7","Services - Professional Fees","130174219","28/06/2017","City Development","City Development  - Core Team","R4400"
"Wolverhampton City Council","http://opendatacommunities.org/id/metropolitan-district-council/wolverhampton","704649","Jacobs U.K.Limited","B1018000 - 209 - 027","480","Construction and Conversion","130174226","28/06/2017","-","Structural works","C1100"
"Wolverhampton City Council","http://opendatacommunities.org/id/metropolitan-district-council/wolverhampton","704649","Jacobs U.K.Limited","B1018000 - 209 - 020","542.01","Services - Professional Fees","130174221","28/06/2017","Corporate Asset Management","Strategic Asset Management Team","R4400"
"Wolverhampton City Council","http://opendatacommunities.org/id/metropolitan-district-council/wolverhampton","704649","Jacobs U.K.Limited","B1018000 - 209 - 031","116.6","Construction and Conversion","130174228","28/06/2017","-","Heath Town","C1100"
"Wolverhampton City Council","http://opendatacommunities.org/id/metropolitan-district-council/wolverhampton","704649","Jacobs U.K.Limited","B1018000 - 209 - 031","95.24","Construction and Conversion","130174228","28/06/2017","-","Heath Town","C1100"
"Wolverhampton City Council","http://opendatacommunities.org/id/metropolitan-district-council/wolverhampton","704649","Jacobs U.K.Limited","B1018000 - 209 - 007","6,137.82","Services - Professional Fees","130174211","28/06/2017","Maintenance Programme","Centralised R&M","R4400"
"Wolverhampton City Council","http://opendatacommunities.org/id/metropolitan-district-council/wolverhampton","704649","Jacobs U.K.Limited","B1018000 - 209 - 010","5,540.55","Services - Professional Fees","130174213","28/06/2017","Estates and Valuations","Estates and Valuations Team","R4400"
"Wolverhampton City Council","http://opendatacommunities.org/id/metropolitan-district-council/wolverhampton","704649","Jacobs U.K.Limited","B1018000-209-002","196.14","Construction and Conversion","130174233","28/06/2017","-","Black Country Growth Deal � Cultural Programme","C1100"
"Wolverhampton City Council","http://opendatacommunities.org/id/metropolitan-district-council/wolverhampton","704649","Jacobs U.K.Limited","B1018000 - 209 - 017","338.75","Services - Professional Fees","130174218","28/06/2017","Corporate Asset Management","Strategic Asset Management Team","R4400"
"Wolverhampton City Council","http://opendatacommunities.org/id/metropolitan-district-council/wolverhampton","704649","Jacobs U.K.Limited","B1018000 - 209 - 034","564.8","Construction and Conversion","130174231","28/06/2017","-","Future Spaces","C1100"
"Wolverhampton City Council","http://opendatacommunities.org/id/metropolitan-district-council/wolverhampton","704657","James Lister & Sons Limited","0100/02707169","191.26","Protective Clothing","130174022","07/06/2017","Facilities Management","Civic Centre","R4200"
"Wolverhampton City Council","http://opendatacommunities.org/id/metropolitan-district-council/wolverhampton","704657","James Lister & Sons Limited","0100/02707153","81.5","Protective Clothing","130174007","07/06/2017","Facilities Management","Civic Centre","R4200"
"Wolverhampton City Council","http://opendatacommunities.org/id/metropolitan-district-council/wolverhampton","704657","James Lister & Sons Limited","0100/02707170","200.76","Protective Clothing","130174023","07/06/2017","Markets","Wolverhampton Indoor and Open Market","R4200"
"Wolverhampton City Council","http://opendatacommunities.org/id/metropolitan-district-council/wolverhampton","704657","James Lister & Sons Limited","0100/02707160","450.94","Protective Clothing","130174014","07/06/2017","Environmental Maintenance","Ground Maintenance East","R4200"
"Wolverhampton City Council","http://opendatacommunities.org/id/metropolitan-district-council/wolverhampton","704657","James Lister & Sons Limited","0100/ 02648203","58.25","Protective Clothing","130144976","30/06/2017","Capital Programme","Capital Programme Team","R4200"
"Wolverhampton City Council","http://opendatacommunities.org/id/metropolitan-district-council/wolverhampton","704657","James Lister & Sons Limited","0100/02714446","752.26","Protective Clothing","130177286","30/06/2017","Fleet Services","Fleet Management","R4200"
"Wolverhampton City Council","http://opendatacommunities.org/id/metropolitan-district-council/wolverhampton","704657","James Lister & Sons Limited","240/02698889","235.57","Equipment - Purchase","190343258","07/06/2017","Fleet Services","Fleet Management","R4000"
"Wolverhampton City Council","http://opendatacommunities.org/id/metropolitan-district-council/wolverhampton","704657","James Lister & Sons Limited","240/02698890","64.45","Equipment - Purchase","190343259","07/06/2017","Fleet Services","Fleet Management","R4000"
"Wolverhampton City Council","http://opendatacommunities.org/id/metropolitan-district-council/wolverhampton","704657","James Lister & Sons Limited","240/02695318","50","Equipment - Purchase","190343257","07/06/2017","Fleet Services","Fleet Management","R4000"
"Wolverhampton City Council","http://opendatacommunities.org/id/metropolitan-district-council/wolverhampton","704657","James Lister & Sons Limited","240/02698892","30","Equipment - Purchase","190343260","07/06/2017","Fleet Services","Fleet Management","R4000"
"Wolverhampton City Council","http://opendatacommunities.org/id/metropolitan-district-council/wolverhampton","704657","James Lister & Sons Limited","0100/02712135","17.1","Protective Clothing","130176420","28/06/2017","Cleaning","Cleaning of Buildings - General","R4200"
"Wolverhampton City Council","http://opendatacommunities.org/id/metropolitan-district-council/wolverhampton","704657","James Lister & Sons Limited","0100/02709397","43.8","Protective Clothing","130177082","28/06/2017","Highways Maintenance","Patching","R4200"
"Wolverhampton City Council","http://opendatacommunities.org/id/metropolitan-district-council/wolverhampton","704657","James Lister & Sons Limited","0100/02711600","1,041.00","Equipment - R & M","130177084","28/06/2017","Visitor Economy","Civic Halls Non-Direct Event Management Account","R4003"
"Wolverhampton City Council","http://opendatacommunities.org/id/metropolitan-district-council/wolverhampton","704657","James Lister & Sons Limited","0100/ 01035169","-9.25","Protective Clothing","130176418","28/06/2017","Capital Programme","Capital Programme Team","R4200"
"Wolverhampton City Council","http://opendatacommunities.org/id/metropolitan-district-council/wolverhampton","704657","James Lister & Sons Limited","0100/02709399","16.65","Protective Clothing","130177083","28/06/2017","Planning","Planning","R4200"
"Wolverhampton City Council","http://opendatacommunities.org/id/metropolitan-district-council/wolverhampton","704657","James Lister & Sons Limited","0100/02707158","54.5","Protective Clothing","130174012","07/06/2017","Highways Maintenance","Patching","R4200"
"Wolverhampton City Council","http://opendatacommunities.org/id/metropolitan-district-council/wolverhampton","704657","James Lister & Sons Limited","240/02704064","61.6","Equipment - Purchase","190347745","21/06/2017","Fleet Services","Fleet Management","R4000"
"Wolverhampton City Council","http://opendatacommunities.org/id/metropolitan-district-council/wolverhampton","704657","James Lister & Sons Limited","0100/02707168","9.81","Protective Clothing","130174021","02/06/2017","Cleaning","Cleaning of Buildings - General","R4200"
"Wolverhampton City Council","http://opendatacommunities.org/id/metropolitan-district-council/wolverhampton","704657","James Lister & Sons Limited","0100/02707168","19.62","Protective Clothing","130174021","02/06/2017","Cleaning","Cleaning of Buildings - General","R4200"
"Wolverhampton City Council","http://opendatacommunities.org/id/metropolitan-district-council/wolverhampton","704657","James Lister & Sons Limited","0100/02707150","27","Cleaning Supplies and Materials","130174004","02/06/2017","Fleet Services","Passenger Transport - General","R2705"
"Wolverhampton City Council","http://opendatacommunities.org/id/metropolitan-district-council/wolverhampton","704657","James Lister & Sons Limited","0100/02707156","19.7","Protective Clothing","130174010","02/06/2017","Cleaning","Cleaning of Buildings - General","R4200"
"Wolverhampton City Council","http://opendatacommunities.org/id/metropolitan-district-council/wolverhampton","704657","James Lister & Sons Limited","0100/02707156","13.15","Protective Clothing","130174010","02/06/2017","Cleaning","Cleaning of Buildings - General","R4200"
"Wolverhampton City Council","http://opendatacommunities.org/id/metropolitan-district-council/wolverhampton","704657","James Lister & Sons Limited","0100/02707159","102.6","Protective Clothing","130174013","02/06/2017","Older People Provider Services","Reablement Team","R4200"
"Wolverhampton City Council","http://opendatacommunities.org/id/metropolitan-district-council/wolverhampton","704657","James Lister & Sons Limited","0100/02707155","14.84","Protective Clothing","130174009","02/06/2017","Markets","Wolverhampton Indoor and Open Market","R4200"
"Wolverhampton City Council","http://opendatacommunities.org/id/metropolitan-district-council/wolverhampton","704657","James Lister & Sons Limited","0100/02707155","29.26","Protective Clothing","130174009","02/06/2017","Markets","Wolverhampton Indoor and Open Market","R4200"
"Wolverhampton City Council","http://opendatacommunities.org/id/metropolitan-district-council/wolverhampton","704657","James Lister & Sons Limited","0175/02707171","1,416.40","Equipment - Purchase","130174024","02/06/2017","Bereavement Services","Cemeteries","R4000"
"Wolverhampton City Council","http://opendatacommunities.org/id/metropolitan-district-council/wolverhampton","704657","James Lister & Sons Limited","0100/02707167","9.81","Protective Clothing","130174020","02/06/2017","Cleaning","Cleaning of Buildings - General","R4200"
"Wolverhampton City Council","http://opendatacommunities.org/id/metropolitan-district-council/wolverhampton","704657","James Lister & Sons Limited","0100/02707162","76","Protective Clothing","130174016","02/06/2017","Fleet Services","Passenger Transport - General","R4200"
"Wolverhampton City Council","http://opendatacommunities.org/id/metropolitan-district-council/wolverhampton","704657","James Lister & Sons Limited","0100/02707155","29.68","Protective Clothing","130174009","02/06/2017","Markets","Wolverhampton Indoor and Open Market","R4200"
"Wolverhampton City Council","http://opendatacommunities.org/id/metropolitan-district-council/wolverhampton","704657","James Lister & Sons Limited","0100/02707155","22.26","Protective Clothing","130174009","02/06/2017","Markets","Wolverhampton Indoor and Open Market","R4200"
"Wolverhampton City Council","http://opendatacommunities.org/id/metropolitan-district-council/wolverhampton","704657","James Lister & Sons Limited","0175/02707171","117.3","Equipment - Purchase","130174024","02/06/2017","Bereavement Services","Cemeteries","R4000"
"Wolverhampton City Council","http://opendatacommunities.org/id/metropolitan-district-council/wolverhampton","704657","James Lister & Sons Limited","0100/02707154","19.7","Protective Clothing","130174008","02/06/2017","Cleaning","Cleaning of Buildings - General","R4200"
"Wolverhampton City Council","http://opendatacommunities.org/id/metropolitan-district-council/wolverhampton","704657","James Lister & Sons Limited","0100/02707154","26.95","Protective Clothing","130174008","02/06/2017","Cleaning","Cleaning of Buildings - General","R4200"
"Wolverhampton City Council","http://opendatacommunities.org/id/metropolitan-district-council/wolverhampton","704657","James Lister & Sons Limited","0100/02707164","12.32","Protective Clothing","130174018","09/06/2017","Markets","Bilston Market and Licensed Operations","R4200"
"Wolverhampton City Council","http://opendatacommunities.org/id/metropolitan-district-council/wolverhampton","704657","James Lister & Sons Limited","0100/02707164","24.64","Protective Clothing","130174018","09/06/2017","Markets","Bilston Market and Licensed Operations","R4200"
"Wolverhampton City Council","http://opendatacommunities.org/id/metropolitan-district-council/wolverhampton","704657","James Lister & Sons Limited","0100/02707164","-24.64","Protective Clothing","130174018","09/06/2017","Markets","Bilston Market and Licensed Operations","R4200"
"Wolverhampton City Council","http://opendatacommunities.org/id/metropolitan-district-council/wolverhampton","704657","James Lister & Sons Limited","0100/02707164","24.64","Protective Clothing","130174018","09/06/2017","Markets","Bilston Market and Licensed Operations","R4200"
"Wolverhampton City Council","http://opendatacommunities.org/id/metropolitan-district-council/wolverhampton","704657","James Lister & Sons Limited","0100/02714440","11.4","Protective Clothing","130177280","28/06/2017","Cleaning","Cleaning of Buildings - General","R4200"
"Wolverhampton City Council","http://opendatacommunities.org/id/metropolitan-district-council/wolverhampton","704657","James Lister & Sons Limited","0100/02714440","16.4","Protective Clothing","130177280","28/06/2017","Cleaning","Cleaning of Buildings - General","R4200"
"Wolverhampton City Council","http://opendatacommunities.org/id/metropolitan-district-council/wolverhampton","704657","James Lister & Sons Limited","0100/02714440","2.1","Protective Clothing","130177280","28/06/2017","Cleaning","Cleaning of Buildings - General","R4200"
"Wolverhampton City Council","http://opendatacommunities.org/id/metropolitan-district-council/wolverhampton","704657","James Lister & Sons Limited","0100/02714438","216","Protective Clothing","130177278","28/06/2017","Highways Maintenance","Patching","R4200"
"Wolverhampton City Council","http://opendatacommunities.org/id/metropolitan-district-council/wolverhampton","704657","James Lister & Sons Limited","0100/ 02623505","26.95","Protective Clothing","130133902","28/06/2017","Cleaning","Cleaning of Buildings - General","R4200"
"Wolverhampton City Council","http://opendatacommunities.org/id/metropolitan-district-council/wolverhampton","704657","James Lister & Sons Limited","0100/ 02634988","272.25","Protective Clothing","130138914","28/06/2017","Catering","Education Catering - General Overheads","R4200"
"Wolverhampton City Council","http://opendatacommunities.org/id/metropolitan-district-council/wolverhampton","704657","James Lister & Sons Limited","0100/02714441","9.1","Protective Clothing","130177281","28/06/2017","Parking Services","Car Parks Operational Staff","R4200"
"Wolverhampton City Council","http://opendatacommunities.org/id/metropolitan-district-council/wolverhampton","704657","James Lister & Sons Limited","0100/02712144","370.92","Protective Clothing","130176428","23/06/2017","Environmental Maintenance","Ground Maintenance West","R4200"
"Wolverhampton City Council","http://opendatacommunities.org/id/metropolitan-district-council/wolverhampton","704657","James Lister & Sons Limited","0100/02712139","132","Protective Clothing","130176423","23/06/2017","Environmental Maintenance","Ground Maintenance East","R4200"
"Wolverhampton City Council","http://opendatacommunities.org/id/metropolitan-district-council/wolverhampton","704657","James Lister & Sons Limited","0100/02712139","130.7","Protective Clothing","130176423","23/06/2017","Environmental Maintenance","Ground Maintenance East","R4200"
"Wolverhampton City Council","http://opendatacommunities.org/id/metropolitan-district-council/wolverhampton","704657","James Lister & Sons Limited","0100/02712139","196.05","Protective Clothing","130176423","23/06/2017","Environmental Maintenance","Ground Maintenance East","R4200"
"Wolverhampton City Council","http://opendatacommunities.org/id/metropolitan-district-council/wolverhampton","704657","James Lister & Sons Limited","0100/02714445","32.95","Protective Clothing","130177285","30/06/2017","Fleet Services","Fleet Management","R4200"
"Wolverhampton City Council","http://opendatacommunities.org/id/metropolitan-district-council/wolverhampton","704657","James Lister & Sons Limited","0100/02709398","8.7","Protective Clothing","130175251","21/06/2017","School Planning & Resources","Special - Transport","R4200"
"Wolverhampton City Council","http://opendatacommunities.org/id/metropolitan-district-council/wolverhampton","704657","James Lister & Sons Limited","0100/02709398","-8.7","Protective Clothing","130175251","21/06/2017","School Planning & Resources","Special - Transport","R4200"
"Wolverhampton City Council","http://opendatacommunities.org/id/metropolitan-district-council/wolverhampton","704657","James Lister & Sons Limited","0100/02709398","8.7","Protective Clothing","130175251","21/06/2017","School Planning & Resources","Special - Transport","R4200"
"Wolverhampton City Council","http://opendatacommunities.org/id/metropolitan-district-council/wolverhampton","704657","James Lister & Sons Limited","0100/02712134","11.4","Protective Clothing","130176419","21/06/2017","Cleaning","Cleaning of Buildings - General","R4200"
"Wolverhampton City Council","http://opendatacommunities.org/id/metropolitan-district-council/wolverhampton","704657","James Lister & Sons Limited","0100/02712134","16.4","Protective Clothing","130176419","21/06/2017","Cleaning","Cleaning of Buildings - General","R4200"
"Wolverhampton City Council","http://opendatacommunities.org/id/metropolitan-district-council/wolverhampton","704657","James Lister & Sons Limited","0100/02712140","22.64","Protective Clothing","130176424","21/06/2017","Cleaning","Cleaning of Buildings - General","R4200"
"Wolverhampton City Council","http://opendatacommunities.org/id/metropolitan-district-council/wolverhampton","704657","James Lister & Sons Limited","0100/02714443","109","Protective Clothing","130177283","28/06/2017","Highways Maintenance","Patching","R4200"
"Wolverhampton City Council","http://opendatacommunities.org/id/metropolitan-district-council/wolverhampton","704657","James Lister & Sons Limited","0100/02714437","10.5","Protective Clothing","130177277","28/06/2017","Markets","Wholesale Market Facilities Management","R4200"
"Wolverhampton City Council","http://opendatacommunities.org/id/metropolitan-district-council/wolverhampton","704657","James Lister & Sons Limited","0100/02714439","10.5","Protective Clothing","130177279","28/06/2017","Markets","Wholesale Market Facilities Management","R4200"
"Wolverhampton City Council","http://opendatacommunities.org/id/metropolitan-district-council/wolverhampton","704657","James Lister & Sons Limited","0100/02712136","17.7","Protective Clothing","130176421","28/06/2017","Parking Services","Parking Enforcement","R4200"
"Wolverhampton City Council","http://opendatacommunities.org/id/metropolitan-district-council/wolverhampton","704657","James Lister & Sons Limited","0100/02712136","11.8","Protective Clothing","130176421","28/06/2017","Parking Services","Car Parks Operational Staff","R4200"
"Wolverhampton City Council","http://opendatacommunities.org/id/metropolitan-district-council/wolverhampton","704657","James Lister & Sons Limited","0100/02714436","26.95","Protective Clothing","130177276","28/06/2017","Cleaning","Cleaning of Buildings - General","R4200"
"Wolverhampton City Council","http://opendatacommunities.org/id/metropolitan-district-council/wolverhampton","704657","James Lister & Sons Limited","0100/02709401","287.4","Protective Clothing","130175252","14/06/2017","Catering","Education Catering - General Overheads","R4200"
"Wolverhampton City Council","http://opendatacommunities.org/id/metropolitan-district-council/wolverhampton","704657","James Lister & Sons Limited","0100/02707166","849.31","Protective Clothing","130174019","16/06/2017","Cleaning","Cleaning of Buildings - General","R4200"
"Wolverhampton City Council","http://opendatacommunities.org/id/metropolitan-district-council/wolverhampton","704657","James Lister & Sons Limited","0100/02712142","28","Clothing / Uniforms","130176426","30/06/2017","Central Corporate Budgets","Corporate Directorate Development","R4201"
"Wolverhampton City Council","http://opendatacommunities.org/id/metropolitan-district-council/wolverhampton","704657","James Lister & Sons Limited","0100/02714444","169.5","Protective Clothing","130177284","30/06/2017","Highways Maintenance","Patching","R4200"
"Wolverhampton City Council","http://opendatacommunities.org/id/metropolitan-district-council/wolverhampton","704657","James Lister & Sons Limited","0100/02712143","68.72","Protective Clothing","130176427","21/06/2017","Highways Maintenance","Patching","R4200"
"Wolverhampton City Council","http://opendatacommunities.org/id/metropolitan-district-council/wolverhampton","704657","James Lister & Sons Limited","0100/02712138","213.57","Protective Clothing","130176422","21/06/2017","Catering","Education Catering - General Overheads","R4200"
"Wolverhampton City Council","http://opendatacommunities.org/id/metropolitan-district-council/wolverhampton","704657","James Lister & Sons Limited","0100/02707152","42.78","Protective Clothing","130174006","07/06/2017","Housing","Private Sector Housing","R4200"
"Wolverhampton City Council","http://opendatacommunities.org/id/metropolitan-district-council/wolverhampton","704657","James Lister & Sons Limited","0100/02707152","38.65","Protective Clothing","130174006","07/06/2017","Housing","Private Sector Housing","R4200"
"Wolverhampton City Council","http://opendatacommunities.org/id/metropolitan-district-council/wolverhampton","704657","James Lister & Sons Limited","0100/02707163","30.64","Protective Clothing","130174017","07/06/2017","Catering","Education Catering - General Overheads","R4200"
"Wolverhampton City Council","http://opendatacommunities.org/id/metropolitan-district-council/wolverhampton","704676","JCM Seating Solutions Limited","1496","878.18","Equipment - Purchase","130173814","28/06/2017","Independent Living Service","Independent Living Service","R4000"
"Wolverhampton City Council","http://opendatacommunities.org/id/metropolitan-district-council/wolverhampton","704676","JCM Seating Solutions Limited","1496","48.54","Equipment - Purchase","130173814","28/06/2017","Independent Living Service","Independent Living Service","R4000"
"Wolverhampton City Council","http://opendatacommunities.org/id/metropolitan-district-council/wolverhampton","704676","JCM Seating Solutions Limited","1496","270.38","Equipment - Purchase","130173814","28/06/2017","Independent Living Service","Independent Living Service","R4000"
"Wolverhampton City Council","http://opendatacommunities.org/id/metropolitan-district-council/wolverhampton","704676","JCM Seating Solutions Limited","1496","50","Equipment - Purchase","130173814","28/06/2017","Independent Living Service","Independent Living Service","R4000"
"Wolverhampton City Council","http://opendatacommunities.org/id/metropolitan-district-council/wolverhampton","704676","JCM Seating Solutions Limited","1496","45","Equipment - Purchase","130173814","28/06/2017","Independent Living Service","Independent Living Service","R4000"
"Wolverhampton City Council","http://opendatacommunities.org/id/metropolitan-district-council/wolverhampton","704676","JCM Seating Solutions Limited","1496","109.22","Equipment - Purchase","130173814","28/06/2017","Independent Living Service","Independent Living Service","R4000"
"Wolverhampton City Council","http://opendatacommunities.org/id/metropolitan-district-council/wolverhampton","704703","Jim�S Transfleet","2122AA","1,601.70","Client Transport","130173606","07/06/2017","School Planning & Resources","Special - Transport","R3042"
"Wolverhampton City Council","http://opendatacommunities.org/id/metropolitan-district-council/wolverhampton","704703","Jim�S Transfleet","2122A","1,666.49","Client Transport","130173605","07/06/2017","School Planning & Resources","Special - Transport","R3042"
"Wolverhampton City Council","http://opendatacommunities.org/id/metropolitan-district-council/wolverhampton","704722","Johal Dairies Limited","W1/3042017","17,008.32","School Milk","130173161","07/06/2017","Catering","Education Catering - General Overheads","R4104"
"Wolverhampton City Council","http://opendatacommunities.org/id/metropolitan-district-council/wolverhampton","704722","Johal Dairies Limited","918463","132.01","Provisions (Resale)","130174988","28/06/2017","Older People Provider Services","Bradley Lodge Resource Centre","R4102"
"Wolverhampton City Council","http://opendatacommunities.org/id/metropolitan-district-council/wolverhampton","704722","Johal Dairies Limited","918474","91.2","Provisions (Not for resale)","130174989","23/06/2017","Visitor Economy","Bantock - Tea Rooms","R4101"
"Wolverhampton City Council","http://opendatacommunities.org/id/metropolitan-district-council/wolverhampton","704722","Johal Dairies Limited","907475","126.27","Provisions (Resale)","130171140","09/06/2017","Older People Provider Services","Bradley Lodge Resource Centre","R4102"
"Wolverhampton City Council","http://opendatacommunities.org/id/metropolitan-district-council/wolverhampton","704722","Johal Dairies Limited","5620042017","625.71","Provisions (Resale)","130174465","09/06/2017","Catering","Civic Centre Catering","R4102"
"Wolverhampton City Council","http://opendatacommunities.org/id/metropolitan-district-council/wolverhampton","704722","Johal Dairies Limited","910201","88.34","Provisions (Resale)","130171146","09/06/2017","Older People Provider Services","Bradley Lodge Resource Centre","R4102"
"Wolverhampton City Council","http://opendatacommunities.org/id/metropolitan-district-council/wolverhampton","704722","Johal Dairies Limited","914171","120.19","Provisions (Resale)","130171152","09/06/2017","Older People Provider Services","Bradley Lodge Resource Centre","R4102"
"Wolverhampton City Council","http://opendatacommunities.org/id/metropolitan-district-council/wolverhampton","704722","Johal Dairies Limited","5620052017","848.94","Provisions (Resale)","130176124","28/06/2017","Catering","Civic Centre Catering","R4102"
"Wolverhampton City Council","http://opendatacommunities.org/id/metropolitan-district-council/wolverhampton","704722","Johal Dairies Limited","918477","25.57","Provisions (Not for resale)","130174991","23/06/2017","Learning Disability Provider","Duke Street Bungalows","R4101"
"Wolverhampton City Council","http://opendatacommunities.org/id/metropolitan-district-council/wolverhampton","704722","Johal Dairies Limited","922726","25.57","Provisions (Not for resale)","130174997","23/06/2017","Learning Disability Provider","Duke Street Bungalows","R4101"
"Wolverhampton City Council","http://opendatacommunities.org/id/metropolitan-district-council/wolverhampton","704722","Johal Dairies Limited","926980","25.57","Provisions (Not for resale)","130175003","23/06/2017","Learning Disability Provider","Duke Street Bungalows","R4101"
"Wolverhampton City Council","http://opendatacommunities.org/id/metropolitan-district-council/wolverhampton","704722","Johal Dairies Limited","931313","25.57","Provisions (Not for resale)","130175009","23/06/2017","Learning Disability Provider","Duke Street Bungalows","R4101"
"Wolverhampton City Council","http://opendatacommunities.org/id/metropolitan-district-council/wolverhampton","704722","Johal Dairies Limited","926979","21.64","Provisions (Not for resale)","130175002","23/06/2017","Learning Disability Provider","Duke Street Bungalows","R4101"
"Wolverhampton City Council","http://opendatacommunities.org/id/metropolitan-district-council/wolverhampton","704722","Johal Dairies Limited","931312","21.64","Provisions (Not for resale)","130175008","23/06/2017","Learning Disability Provider","Duke Street Bungalows","R4101"
"Wolverhampton City Council","http://opendatacommunities.org/id/metropolitan-district-council/wolverhampton","704722","Johal Dairies Limited","918476","21.64","Provisions (Not for resale)","130174990","23/06/2017","Learning Disability Provider","Duke Street Bungalows","R4101"
"Wolverhampton City Council","http://opendatacommunities.org/id/metropolitan-district-council/wolverhampton","704722","Johal Dairies Limited","922725","21.64","Provisions (Not for resale)","130174996","23/06/2017","Learning Disability Provider","Duke Street Bungalows","R4101"
"Wolverhampton City Council","http://opendatacommunities.org/id/metropolitan-district-council/wolverhampton","704722","Johal Dairies Limited","926981","35.39","Provisions (Not for resale)","130175004","23/06/2017","Learning Disability Provider","Duke Street Bungalows","R4101"
"Wolverhampton City Council","http://opendatacommunities.org/id/metropolitan-district-council/wolverhampton","704722","Johal Dairies Limited","922727","35.39","Provisions (Not for resale)","130174998","23/06/2017","Learning Disability Provider","Duke Street Bungalows","R4101"
"Wolverhampton City Council","http://opendatacommunities.org/id/metropolitan-district-council/wolverhampton","704722","Johal Dairies Limited","918478","35.39","Provisions (Not for resale)","130174992","23/06/2017","Learning Disability Provider","Duke Street Bungalows","R4101"
"Wolverhampton City Council","http://opendatacommunities.org/id/metropolitan-district-council/wolverhampton","704722","Johal Dairies Limited","931314","35.39","Provisions (Not for resale)","130175010","23/06/2017","Learning Disability Provider","Duke Street Bungalows","R4101"
"Wolverhampton City Council","http://opendatacommunities.org/id/metropolitan-district-council/wolverhampton","704722","Johal Dairies Limited","900129","120.19","Provisions (Resale)","130171128","07/06/2017","Older People Provider Services","Bradley Lodge Resource Centre","R4102"
"Wolverhampton City Council","http://opendatacommunities.org/id/metropolitan-district-council/wolverhampton","704722","Johal Dairies Limited","904575","117.43","Provisions (Resale)","130171134","07/06/2017","Older People Provider Services","Bradley Lodge Resource Centre","R4102"
"Wolverhampton City Council","http://opendatacommunities.org/id/metropolitan-district-council/wolverhampton","704722","Johal Dairies Limited","907484","18.35","Provisions (Resale)","130171145","07/06/2017","Older People Provider Services","Blakenhall Resource Centre","R4102"
"Wolverhampton City Council","http://opendatacommunities.org/id/metropolitan-district-council/wolverhampton","704722","Johal Dairies Limited","931356","43.78","Provisions (Resale)","130175011","21/06/2017","Older People Provider Services","Blakenhall Resource Centre","R4102"
"Wolverhampton City Council","http://opendatacommunities.org/id/metropolitan-district-council/wolverhampton","704722","Johal Dairies Limited","931310","88.58","Provisions (Not for resale)","130175007","28/06/2017","Visitor Economy","Bantock - Tea Rooms","R4101"
"Wolverhampton City Council","http://opendatacommunities.org/id/metropolitan-district-council/wolverhampton","704722","Johal Dairies Limited","922723","138.5","Provisions (Not for resale)","130174995","28/06/2017","Visitor Economy","Bantock - Tea Rooms","R4101"
"Wolverhampton City Council","http://opendatacommunities.org/id/metropolitan-district-council/wolverhampton","704722","Johal Dairies Limited","926977","98.74","Provisions (Not for resale)","130175001","28/06/2017","Visitor Economy","Bantock - Tea Rooms","R4101"
"Wolverhampton City Council","http://opendatacommunities.org/id/metropolitan-district-council/wolverhampton","704722","Johal Dairies Limited","5466052017","313.5","Provisions (Not for resale)","130175450","28/06/2017","Leisure Services","WV Active Catering","R4101"
"Wolverhampton City Council","http://opendatacommunities.org/id/metropolitan-district-council/wolverhampton","704722","Johal Dairies Limited","5935052017","318.3","Provisions (Not for resale)","130175451","28/06/2017","Leisure Services","Bert Williams Leisure Centre Caf�","R4101"
"Wolverhampton City Council","http://opendatacommunities.org/id/metropolitan-district-council/wolverhampton","704722","Johal Dairies Limited","6525052017","117.8","Provisions (Not for resale)","130175452","28/06/2017","Leisure Services","WV Active Catering - Central","R4101"
"Wolverhampton City Council","http://opendatacommunities.org/id/metropolitan-district-council/wolverhampton","704722","Johal Dairies Limited","914228","10.19","Provisions (Resale)","130171157","14/06/2017","Older People Provider Services","Blakenhall Resource Centre","R4102"
"Wolverhampton City Council","http://opendatacommunities.org/id/metropolitan-district-council/wolverhampton","704722","Johal Dairies Limited","907483","30.75","Provisions (Not for resale)","130171144","14/06/2017","Learning Disability Provider","Duke Street Bungalows","R4101"
"Wolverhampton City Council","http://opendatacommunities.org/id/metropolitan-district-council/wolverhampton","704722","Johal Dairies Limited","904632","40.09","Provisions (Resale)","130171139","14/06/2017","Older People Provider Services","Blakenhall Resource Centre","R4102"
"Wolverhampton City Council","http://opendatacommunities.org/id/metropolitan-district-council/wolverhampton","704722","Johal Dairies Limited","910210","23.56","Provisions (Resale)","130171151","14/06/2017","Older People Provider Services","Blakenhall Resource Centre","R4102"
"Wolverhampton City Council","http://opendatacommunities.org/id/metropolitan-district-council/wolverhampton","704722","Johal Dairies Limited","5935042017","207.9","Provisions (Not for resale)","130174647","07/06/2017","Leisure Services","Bert Williams Leisure Centre Caf�","R4101"
"Wolverhampton City Council","http://opendatacommunities.org/id/metropolitan-district-council/wolverhampton","704722","Johal Dairies Limited","6525042017","50.56","Provisions (Not for resale)","130174648","07/06/2017","Leisure Services","WV Active Catering - Central","R4101"
"Wolverhampton City Council","http://opendatacommunities.org/id/metropolitan-district-council/wolverhampton","704722","Johal Dairies Limited","5466042017","194.34","Provisions (Not for resale)","130174646","07/06/2017","Leisure Services","WV Active Catering","R4101"
"Wolverhampton City Council","http://opendatacommunities.org/id/metropolitan-district-council/wolverhampton","704722","Johal Dairies Limited","WKIT042017","4,718.86","Provisions (Resale)","130173304","09/06/2017","Catering","Education Catering - General Overheads","R4102"
"Wolverhampton City Council","http://opendatacommunities.org/id/metropolitan-district-council/wolverhampton","704722","Johal Dairies Limited","WKIT042017","-4,718.86","Provisions (Resale)","130173304","09/06/2017","Catering","Education Catering - General Overheads","R4102"
"Wolverhampton City Council","http://opendatacommunities.org/id/metropolitan-district-council/wolverhampton","704722","Johal Dairies Limited","WKIT042017","4,705.58","Provisions (Resale)","130173304","09/06/2017","Catering","Education Catering - General Overheads","R4102"
"Wolverhampton City Council","http://opendatacommunities.org/id/metropolitan-district-council/wolverhampton","704722","Johal Dairies Limited","WKIT042017","11.06","Provisions (Resale)","130173304","09/06/2017","Catering","Education Catering - General Overheads","R4102"
"Wolverhampton City Council","http://opendatacommunities.org/id/metropolitan-district-council/wolverhampton","704731","John Knight Interiors","12713WC008","897","Equipment - Purchase","130177085","28/06/2017","Early Intervention","EIP Locality 3 - Graiseley","R4000"
"Wolverhampton City Council","http://opendatacommunities.org/id/metropolitan-district-council/wolverhampton","704745","Johnson Poole & Bloomer Limited","SC23764","15,000.00","Construction and Conversion","130174466","07/06/2017","-","Site Remediation Farndale","C1100"
"Wolverhampton City Council","http://opendatacommunities.org/id/metropolitan-district-council/wolverhampton","704745","Johnson Poole & Bloomer Limited","63750","1,465.00","Services - Professional Fees","130171583","07/06/2017","Estates and Valuations","Disposal Costs","R4400"
"Wolverhampton City Council","http://opendatacommunities.org/id/metropolitan-district-council/wolverhampton","704745","Johnson Poole & Bloomer Limited","63722","2,250.00","Services - Professional Fees","130170086","16/06/2017","Housing Revenue Account","HRA General","R4400"
"Wolverhampton City Council","http://opendatacommunities.org/id/metropolitan-district-council/wolverhampton","704748","Johnston Sweepers Limited","61498060","89.51","Equipment - Purchase","190343269","07/06/2017","Fleet Services","Fleet Management","R4000"
"Wolverhampton City Council","http://opendatacommunities.org/id/metropolitan-district-council/wolverhampton","704748","Johnston Sweepers Limited","61498090","70.65","Equipment - Purchase","190343270","07/06/2017","Fleet Services","Fleet Management","R4000"
"Wolverhampton City Council","http://opendatacommunities.org/id/metropolitan-district-council/wolverhampton","704748","Johnston Sweepers Limited","61498388","92.41","Equipment - Purchase","190343273","07/06/2017","Fleet Services","Fleet Management","R4000"
"Wolverhampton City Council","http://opendatacommunities.org/id/metropolitan-district-council/wolverhampton","704748","Johnston Sweepers Limited","61498364","37.26","Equipment - Purchase","190343272","07/06/2017","Fleet Services","Fleet Management","R4000"
"Wolverhampton City Council","http://opendatacommunities.org/id/metropolitan-district-council/wolverhampton","704748","Johnston Sweepers Limited","61497197","14.36","Equipment - Purchase","190343267","07/06/2017","Fleet Services","Fleet Management","R4000"
"Wolverhampton City Council","http://opendatacommunities.org/id/metropolitan-district-council/wolverhampton","704748","Johnston Sweepers Limited","61497197","20.15","Equipment - Purchase","190343267","07/06/2017","Fleet Services","Fleet Management","R4000"
"Wolverhampton City Council","http://opendatacommunities.org/id/metropolitan-district-council/wolverhampton","704748","Johnston Sweepers Limited","61496335","10.82","Equipment - Purchase","190343265","07/06/2017","Fleet Services","Fleet Management","R4000"
"Wolverhampton City Council","http://opendatacommunities.org/id/metropolitan-district-council/wolverhampton","704748","Johnston Sweepers Limited","61498400","322.05","Equipment - Purchase","190343274","07/06/2017","Fleet Services","Fleet Management","R4000"
"Wolverhampton City Council","http://opendatacommunities.org/id/metropolitan-district-council/wolverhampton","704748","Johnston Sweepers Limited","61507031","28.19","Equipment - Purchase","190343276","07/06/2017","Fleet Services","Fleet Management","R4000"
"Wolverhampton City Council","http://opendatacommunities.org/id/metropolitan-district-council/wolverhampton","704748","Johnston Sweepers Limited","61507031","35.24","Equipment - Purchase","190343276","07/06/2017","Fleet Services","Fleet Management","R4000"
"Wolverhampton City Council","http://opendatacommunities.org/id/metropolitan-district-council/wolverhampton","704748","Johnston Sweepers Limited","61507031","30.67","Equipment - Purchase","190343276","07/06/2017","Fleet Services","Fleet Management","R4000"
"Wolverhampton City Council","http://opendatacommunities.org/id/metropolitan-district-council/wolverhampton","704748","Johnston Sweepers Limited","61507031","15.62","Equipment - Purchase","190343276","07/06/2017","Fleet Services","Fleet Management","R4000"
"Wolverhampton City Council","http://opendatacommunities.org/id/metropolitan-district-council/wolverhampton","704748","Johnston Sweepers Limited","61507031","6.67","Equipment - Purchase","190343276","07/06/2017","Fleet Services","Fleet Management","R4000"
"Wolverhampton City Council","http://opendatacommunities.org/id/metropolitan-district-council/wolverhampton","704748","Johnston Sweepers Limited","63284373","-80.56","Equipment - Purchase","190343277","07/06/2017","Fleet Services","Fleet Management","R4000"
"Wolverhampton City Council","http://opendatacommunities.org/id/metropolitan-district-council/wolverhampton","704748","Johnston Sweepers Limited","61496658","26.54","Equipment - Purchase","190343266","07/06/2017","Fleet Services","Fleet Management","R4000"
"Wolverhampton City Council","http://opendatacommunities.org/id/metropolitan-district-council/wolverhampton","704748","Johnston Sweepers Limited","61496658","81.93","Equipment - Purchase","190343266","07/06/2017","Fleet Services","Fleet Management","R4000"
"Wolverhampton City Council","http://opendatacommunities.org/id/metropolitan-district-council/wolverhampton","704748","Johnston Sweepers Limited","61496658","9.86","Equipment - Purchase","190343266","07/06/2017","Fleet Services","Fleet Management","R4000"
"Wolverhampton City Council","http://opendatacommunities.org/id/metropolitan-district-council/wolverhampton","704748","Johnston Sweepers Limited","61498353","11.35","Equipment - Purchase","190343271","07/06/2017","Fleet Services","Fleet Management","R4000"
"Wolverhampton City Council","http://opendatacommunities.org/id/metropolitan-district-council/wolverhampton","704748","Johnston Sweepers Limited","61496658","0.95","Equipment - Purchase","190343266","07/06/2017","Fleet Services","Fleet Management","R4000"
"Wolverhampton City Council","http://opendatacommunities.org/id/metropolitan-district-council/wolverhampton","704748","Johnston Sweepers Limited","61496658","15.65","Equipment - Purchase","190343266","07/06/2017","Fleet Services","Fleet Management","R4000"
"Wolverhampton City Council","http://opendatacommunities.org/id/metropolitan-district-council/wolverhampton","704748","Johnston Sweepers Limited","61499950","21.33","Equipment - Purchase","190343275","07/06/2017","Fleet Services","Fleet Management","R4000"
"Wolverhampton City Council","http://opendatacommunities.org/id/metropolitan-district-council/wolverhampton","704748","Johnston Sweepers Limited","61497693","89.51","Equipment - Purchase","190343268","07/06/2017","Fleet Services","Fleet Management","R4000"
"Wolverhampton City Council","http://opendatacommunities.org/id/metropolitan-district-council/wolverhampton","704748","Johnston Sweepers Limited","61502502","65.56","Equipment - Purchase","190343977","07/06/2017","Fleet Services","Fleet Management","R4000"
"Wolverhampton City Council","http://opendatacommunities.org/id/metropolitan-district-council/wolverhampton","704748","Johnston Sweepers Limited","61501985","13.2","Equipment - Purchase","190343975","07/06/2017","Fleet Services","Fleet Management","R4000"
"Wolverhampton City Council","http://opendatacommunities.org/id/metropolitan-district-council/wolverhampton","704748","Johnston Sweepers Limited","61501985","7.49","Equipment - Purchase","190343975","07/06/2017","Fleet Services","Fleet Management","R4000"
"Wolverhampton City Council","http://opendatacommunities.org/id/metropolitan-district-council/wolverhampton","704748","Johnston Sweepers Limited","61501985","46.44","Equipment - Purchase","190343975","07/06/2017","Fleet Services","Fleet Management","R4000"
"Wolverhampton City Council","http://opendatacommunities.org/id/metropolitan-district-council/wolverhampton","704748","Johnston Sweepers Limited","61505670","46.44","Equipment - Purchase","190343979","07/06/2017","Fleet Services","Fleet Management","R4000"
"Wolverhampton City Council","http://opendatacommunities.org/id/metropolitan-district-council/wolverhampton","704748","Johnston Sweepers Limited","61502452","56.58","Equipment - Purchase","190343976","07/06/2017","Fleet Services","Fleet Management","R4000"
"Wolverhampton City Council","http://opendatacommunities.org/id/metropolitan-district-council/wolverhampton","704748","Johnston Sweepers Limited","61501219","26.35","Equipment - Purchase","190343974","07/06/2017","Fleet Services","Fleet Management","R4000"
"Wolverhampton City Council","http://opendatacommunities.org/id/metropolitan-district-council/wolverhampton","704748","Johnston Sweepers Limited","61505192","28.83","Equipment - Purchase","190343978","07/06/2017","Fleet Services","Fleet Management","R4000"
"Wolverhampton City Council","http://opendatacommunities.org/id/metropolitan-district-council/wolverhampton","704748","Johnston Sweepers Limited","61511566","2.94","Equipment - Purchase","190349884","28/06/2017","Fleet Services","Fleet Management","R4000"
"Wolverhampton City Council","http://opendatacommunities.org/id/metropolitan-district-council/wolverhampton","704748","Johnston Sweepers Limited","61512525","33.46","Equipment - Purchase","190349885","28/06/2017","Fleet Services","Fleet Management","R4000"
"Wolverhampton City Council","http://opendatacommunities.org/id/metropolitan-district-council/wolverhampton","704748","Johnston Sweepers Limited","61511566","212.99","Equipment - Purchase","190349884","28/06/2017","Fleet Services","Fleet Management","R4000"
"Wolverhampton City Council","http://opendatacommunities.org/id/metropolitan-district-council/wolverhampton","704748","Johnston Sweepers Limited","61511566","80.14","Equipment - Purchase","190349884","28/06/2017","Fleet Services","Fleet Management","R4000"
"Wolverhampton City Council","http://opendatacommunities.org/id/metropolitan-district-council/wolverhampton","704748","Johnston Sweepers Limited","61506441","196.88","Equipment - Purchase","190344600","09/06/2017","Fleet Services","Fleet Management","R4000"
"Wolverhampton City Council","http://opendatacommunities.org/id/metropolitan-district-council/wolverhampton","704748","Johnston Sweepers Limited","61508300","161.28","Equipment - Purchase","190344602","09/06/2017","Fleet Services","Fleet Management","R4000"
"Wolverhampton City Council","http://opendatacommunities.org/id/metropolitan-district-council/wolverhampton","704748","Johnston Sweepers Limited","61508529","352.84","Equipment - Purchase","190344603","09/06/2017","Fleet Services","Fleet Management","R4000"
"Wolverhampton City Council","http://opendatacommunities.org/id/metropolitan-district-council/wolverhampton","704748","Johnston Sweepers Limited","61504943","10.4","Equipment - Purchase","190344599","09/06/2017","Fleet Services","Fleet Management","R4000"
"Wolverhampton City Council","http://opendatacommunities.org/id/metropolitan-district-council/wolverhampton","704748","Johnston Sweepers Limited","61504943","6.9","Equipment - Purchase","190344599","09/06/2017","Fleet Services","Fleet Management","R4000"
"Wolverhampton City Council","http://opendatacommunities.org/id/metropolitan-district-council/wolverhampton","704748","Johnston Sweepers Limited","61507029","12.36","Equipment - Purchase","190344601","09/06/2017","Fleet Services","Fleet Management","R4000"
"Wolverhampton City Council","http://opendatacommunities.org/id/metropolitan-district-council/wolverhampton","704754","Jones Skips (Wolverhampton) Limited","35288","170","Services - Fees and Charges","130175015","14/06/2017","Early Intervention","EIP Locality 6 � Dovecotes","R4401"
"Wolverhampton City Council","http://opendatacommunities.org/id/metropolitan-district-council/wolverhampton","704754","Jones Skips (Wolverhampton) Limited","35291","170","Equipment - Hire","130175016","14/06/2017","Early Intervention","EIP Locality 6 � Dovecotes","R4001"
"Wolverhampton City Council","http://opendatacommunities.org/id/metropolitan-district-council/wolverhampton","704754","Jones Skips (Wolverhampton) Limited","35289","180","Materials","130174650","23/06/2017","Street Lighting","Street Lighting Maintenance","R4007"
"Wolverhampton City Council","http://opendatacommunities.org/id/metropolitan-district-council/wolverhampton","704754","Jones Skips (Wolverhampton) Limited","35284","170","Materials","130175012","23/06/2017","Street Lighting","Street Lighting Maintenance","R4007"
"Wolverhampton City Council","http://opendatacommunities.org/id/metropolitan-district-council/wolverhampton","704754","Jones Skips (Wolverhampton) Limited","35285","170","TPP - Waste Disposal","130175013","14/06/2017","Early Intervention","EIP Locality 2 � Bilston/Rocket Pool","R5003"
"Wolverhampton City Council","http://opendatacommunities.org/id/metropolitan-district-council/wolverhampton","704754","Jones Skips (Wolverhampton) Limited","35286","170","TPP - Waste Disposal","130175014","14/06/2017","Early Intervention","EIP Locality 1 - Eastfields","R5003"
"Wolverhampton City Council","http://opendatacommunities.org/id/metropolitan-district-council/wolverhampton","704754","Jones Skips (Wolverhampton) Limited","35287","160","TPP - Waste Disposal","130174649","16/06/2017","Early Intervention","EIP Locality 5 � Whitmore Reans","R5003"
"Wolverhampton City Council","http://opendatacommunities.org/id/metropolitan-district-council/wolverhampton","704754","Jones Skips (Wolverhampton) Limited","31844","115","Construction and Conversion","130156908","23/06/2017","-","Co-Location Programme","C1100"
"Wolverhampton City Council","http://opendatacommunities.org/id/metropolitan-district-council/wolverhampton","704754","Jones Skips (Wolverhampton) Limited","35290","170","TPP - Waste Disposal","130174651","07/06/2017","Early Intervention","EIP Locality 1 - Eastfields","R5003"
"Wolverhampton City Council","http://opendatacommunities.org/id/metropolitan-district-council/wolverhampton","704755","Jones Springs (Eng)Limited","22437","48","Equipment - Purchase","190343253","07/06/2017","Fleet Services","Fleet Management","R4000"
"Wolverhampton City Council","http://opendatacommunities.org/id/metropolitan-district-council/wolverhampton","704755","Jones Springs (Eng)Limited","22437","310","Equipment - Purchase","190343253","07/06/2017","Fleet Services","Fleet Management","R4000"
"Wolverhampton City Council","http://opendatacommunities.org/id/metropolitan-district-council/wolverhampton","704798","K Sedgebeer","40","1,000.00","Services - Professional Fees","130175906","16/06/2017","Standards and Vulnerable Pupils","Music Support Team","R4400"
"Wolverhampton City Council","http://opendatacommunities.org/id/metropolitan-district-council/wolverhampton","704802","K Thornton","56","50","Services - Professional Fees","130170715","07/06/2017","Early Intervention","EIP Locality 7 � Low Hill","R4400"
"Wolverhampton City Council","http://opendatacommunities.org/id/metropolitan-district-council/wolverhampton","704832","Kays Medical Limited","219910","350","Equipment - R & M","130176429","23/06/2017","Human Resources","HR Advice","R4003"
"Wolverhampton City Council","http://opendatacommunities.org/id/metropolitan-district-council/wolverhampton","704832","Kays Medical Limited","225640","5.95","Materials","130176431","21/06/2017","Human Resources","Occupational Health","R4007"
"Wolverhampton City Council","http://opendatacommunities.org/id/metropolitan-district-council/wolverhampton","704832","Kays Medical Limited","225240","9.95","Materials","130176430","21/06/2017","Human Resources","Occupational Health","R4007"
"Wolverhampton City Council","http://opendatacommunities.org/id/metropolitan-district-council/wolverhampton","704832","Kays Medical Limited","225240","6.05","Materials","130176430","21/06/2017","Human Resources","Occupational Health","R4007"
"Wolverhampton City Council","http://opendatacommunities.org/id/metropolitan-district-council/wolverhampton","704832","Kays Medical Limited","225240","6.47","Materials","130176430","21/06/2017","Human Resources","Occupational Health","R4007"
"Wolverhampton City Council","http://opendatacommunities.org/id/metropolitan-district-council/wolverhampton","704832","Kays Medical Limited","225240","21.08","Materials","130176430","21/06/2017","Human Resources","Occupational Health","R4007"
"Wolverhampton City Council","http://opendatacommunities.org/id/metropolitan-district-council/wolverhampton","704832","Kays Medical Limited","225240","32.7","Materials","130176430","21/06/2017","Human Resources","Occupational Health","R4007"
"Wolverhampton City Council","http://opendatacommunities.org/id/metropolitan-district-council/wolverhampton","704838","Kee Services Limited","449111","192.33","R&M - Departmental planned (external)","130174844","30/06/2017","Maintenance Programme","Centralised R&M","R2001"
"Wolverhampton City Council","http://opendatacommunities.org/id/metropolitan-district-council/wolverhampton","704855","Kenton Research Limited","OP/I023238","420","Computing - Internet","130173607","07/06/2017","ICTS","Strategic ICTS (ICT Service Budget)","R4537"
"Wolverhampton City Council","http://opendatacommunities.org/id/metropolitan-district-council/wolverhampton","704871","Keysoft Solutions Limited","ORD - 11885 - C1W8F2","2,900.00","Computing - Licences","130176803","28/06/2017","Transportation","Transportation General","R4535"
"Wolverhampton City Council","http://opendatacommunities.org/id/metropolitan-district-council/wolverhampton","704871","Keysoft Solutions Limited","ORD - 11886 - T9K6D5","1,590.00","Computing - Licences","130176804","28/06/2017","Transportation","Transportation General","R4535"
"Wolverhampton City Council","http://opendatacommunities.org/id/metropolitan-district-council/wolverhampton","704899","King Highway Products Limited","SI-000178","220","Services - Professional Fees","190343326","07/06/2017","Fleet Services","Fleet Management","R4400"
"Wolverhampton City Council","http://opendatacommunities.org/id/metropolitan-district-council/wolverhampton","704899","King Highway Products Limited","SI-000178","884.64","Services - Professional Fees","190343326","07/06/2017","Fleet Services","Fleet Management","R4400"
"Wolverhampton City Council","http://opendatacommunities.org/id/metropolitan-district-council/wolverhampton","704899","King Highway Products Limited","SI-000178","220","Services - Professional Fees","190343326","07/06/2017","Fleet Services","Fleet Management","R4400"
"Wolverhampton City Council","http://opendatacommunities.org/id/metropolitan-district-council/wolverhampton","704899","King Highway Products Limited","SI-000178","94.5","Services - Professional Fees","190343326","07/06/2017","Fleet Services","Fleet Management","R4400"
"Wolverhampton City Council","http://opendatacommunities.org/id/metropolitan-district-council/wolverhampton","704901","Kingfisher Environmental Servs Limited","1705545","74.03","Services - Professional Fees","130174845","09/06/2017","Leisure Services","Bert Williams Leisure Centre","R4400"
"Wolverhampton City Council","http://opendatacommunities.org/id/metropolitan-district-council/wolverhampton","704901","Kingfisher Environmental Servs Limited","1705554","53.98","R&M - Departmental planned (external)","130174846","14/06/2017","Leisure Services","Central Baths","R2001"
"Wolverhampton City Council","http://opendatacommunities.org/id/metropolitan-district-council/wolverhampton","704901","Kingfisher Environmental Servs Limited","1702500","70.51","R&M - Departmental planned (internal)","130161840","30/06/2017","Leisure Services","Bert Williams Leisure Centre","R2000"
"Wolverhampton City Council","http://opendatacommunities.org/id/metropolitan-district-council/wolverhampton","704909","Kingsmead  School & Technology College","P14494420170609","600","Grant Payments to Individuals","190344857","14/06/2017","Looked After Children","LAC Education Team (LACE)","R6402"
"Wolverhampton City Council","http://opendatacommunities.org/id/metropolitan-district-council/wolverhampton","704909","Kingsmead  School & Technology College","P14494420170609","600","Grant Payments to Individuals","190344857","14/06/2017","Looked After Children","LAC Education Team (LACE)","R6402"
"Wolverhampton City Council","http://opendatacommunities.org/id/metropolitan-district-council/wolverhampton","704909","Kingsmead  School & Technology College","P14494420170609","600","Grant Payments to Individuals","190344857","14/06/2017","Looked After Children","LAC Education Team (LACE)","R6402"
"Wolverhampton City Council","http://opendatacommunities.org/id/metropolitan-district-council/wolverhampton","704909","Kingsmead  School & Technology College","P14494420170609","600","Grant Payments to Individuals","190344857","14/06/2017","Looked After Children","LAC Education Team (LACE)","R6402"
"Wolverhampton City Council","http://opendatacommunities.org/id/metropolitan-district-council/wolverhampton","704909","Kingsmead  School & Technology College","P14494420170609","600","Grant Payments to Individuals","190344857","14/06/2017","Looked After Children","LAC Education Team (LACE)","R6402"
"Wolverhampton City Council","http://opendatacommunities.org/id/metropolitan-district-council/wolverhampton","704909","Kingsmead  School & Technology College","Blue Bill 29-6-17","3,000.00","Grant Payments to Individuals","130178118","30/06/2017","Looked After Children","LAC Education Team (LACE)","R6402"
"Wolverhampton City Council","http://opendatacommunities.org/id/metropolitan-district-council/wolverhampton","704931","Konica Minolta Bus.Solutions(UK)Limited.","1123895646","201.33","Photocopier Operating Lease","130151480","02/06/2017","School Planning & Resources","Building Schools for the Future (BSF)","R4304"
"Wolverhampton City Council","http://opendatacommunities.org/id/metropolitan-district-council/wolverhampton","704931","Konica Minolta Bus.Solutions(UK)Limited.","1125816047","2.43","Photocopier Operating Lease","130170415","30/06/2017","Adult Education","Service Wide","R4304"
"Wolverhampton City Council","http://opendatacommunities.org/id/metropolitan-district-council/wolverhampton","704931","Konica Minolta Bus.Solutions(UK)Limited.","1130615050","72.55","Photocopier Operating Lease","130168956","02/06/2017","Library Services","Global Budgets","R4304"
"Wolverhampton City Council","http://opendatacommunities.org/id/metropolitan-district-council/wolverhampton","704936","Kroy (Europe) Limited","IV230046","746","Signage and Labels","130173305","21/06/2017","Licensing","Licensing - H.Carriage/Pr.Hire Vehicles","R4009"
"Wolverhampton City Council","http://opendatacommunities.org/id/metropolitan-district-council/wolverhampton","704995","Langham:A Div�N Of Gordon Ellis & Co","SI - 1146897","1,272.60","Equipment - Purchase","130172207","02/06/2017","Independent Living Service","Independent Living Service","R4000"
"Wolverhampton City Council","http://opendatacommunities.org/id/metropolitan-district-council/wolverhampton","704995","Langham:A Div�N Of Gordon Ellis & Co","SI - 1146897","265.14","Equipment - Purchase","130172207","02/06/2017","Independent Living Service","Independent Living Service","R4000"
"Wolverhampton City Council","http://opendatacommunities.org/id/metropolitan-district-council/wolverhampton","705003","Lapwing","185292","450","Materials","130176432","21/06/2017","Highways Maintenance","Patching","R4007"
"Wolverhampton City Council","http://opendatacommunities.org/id/metropolitan-district-council/wolverhampton","705038","Learners Council","33","69.9","Catering","130174026","07/06/2017","Adult Education","Service Wide","R4100"
"Wolverhampton City Council","http://opendatacommunities.org/id/metropolitan-district-council/wolverhampton","705038","Learners Council","33","69.9","Catering","130174026","07/06/2017","Adult Education","Service Wide","R4100"
"Wolverhampton City Council","http://opendatacommunities.org/id/metropolitan-district-council/wolverhampton","705038","Learners Council","33","-69.9","Catering","130174026","07/06/2017","Adult Education","Service Wide","R4100"
"Wolverhampton City Council","http://opendatacommunities.org/id/metropolitan-district-council/wolverhampton","705038","Learners Council","31","105.14","Catering","130173066","07/06/2017","Adult Education","Service Wide","R4100"
"Wolverhampton City Council","http://opendatacommunities.org/id/metropolitan-district-council/wolverhampton","705038","Learners Council","31","-105.14","Catering","130173066","07/06/2017","Adult Education","Service Wide","R4100"
"Wolverhampton City Council","http://opendatacommunities.org/id/metropolitan-district-council/wolverhampton","705038","Learners Council","31","105.14","Catering","130173066","07/06/2017","Adult Education","Service Wide","R4100"
"Wolverhampton City Council","http://opendatacommunities.org/id/metropolitan-district-council/wolverhampton","705040","Learning & Skills (Lsect)","28339","265.5","Staff Advertising Costs","130176433","28/06/2017","Adult Education","SMT - Senior Management Team","R1700"
"Wolverhampton City Council","http://opendatacommunities.org/id/metropolitan-district-council/wolverhampton","705068","Leicester Housing Association","112494","784.03","Services - Translation fees","130174847","09/06/2017","Independent Living Service","Telecare","R4406"
"Wolverhampton City Council","http://opendatacommunities.org/id/metropolitan-district-council/wolverhampton","705068","Leicester Housing Association","112495","791.09","Services - Translation fees","130174848","09/06/2017","Independent Living Service","Telecare","R4406"
"Wolverhampton City Council","http://opendatacommunities.org/id/metropolitan-district-council/wolverhampton","705068","Leicester Housing Association","112496","791.09","Services - Translation fees","130174849","09/06/2017","Independent Living Service","Telecare","R4406"
"Wolverhampton City Council","http://opendatacommunities.org/id/metropolitan-district-council/wolverhampton","705088","Lewis Psychology Cic","2907","400.02","Services - Professional Fees","130177632","30/06/2017","Human Resources","Stress Counselling","R4400"
"Wolverhampton City Council","http://opendatacommunities.org/id/metropolitan-district-council/wolverhampton","705088","Lewis Psychology Cic","2932","516","Services - Professional Fees","130173817","28/06/2017","Human Resources","Stress Counselling","R4400"
"Wolverhampton City Council","http://opendatacommunities.org/id/metropolitan-district-council/wolverhampton","705088","Lewis Psychology Cic","2931","430","Services - Professional Fees","130173816","28/06/2017","Human Resources","Stress Counselling","R4400"
"Wolverhampton City Council","http://opendatacommunities.org/id/metropolitan-district-council/wolverhampton","705089","Lewis�S Medical Supp/Ta Pleskarn Limited","SC000816","-7.95","Materials","130175723","16/06/2017","Older People Provider Services","Reablement Team","R4007"
"Wolverhampton City Council","http://opendatacommunities.org/id/metropolitan-district-council/wolverhampton","705089","Lewis�S Medical Supp/Ta Pleskarn Limited","SI054135","77.8","Materials","130174652","21/06/2017","Older People Provider Services","Reablement Team","R4007"
"Wolverhampton City Council","http://opendatacommunities.org/id/metropolitan-district-council/wolverhampton","705089","Lewis�S Medical Supp/Ta Pleskarn Limited","SI054135","7.95","Materials","130174652","21/06/2017","Older People Provider Services","Reablement Team","R4007"
"Wolverhampton City Council","http://opendatacommunities.org/id/metropolitan-district-council/wolverhampton","705133","Lion Fpg Limited","LI072153","390","Printing","130177288","28/06/2017","ICTS","Document Centre - General","R4300"
"Wolverhampton City Council","http://opendatacommunities.org/id/metropolitan-district-council/wolverhampton","705139","Lister Gases Limited","0310/00737323","297.75","Gas","130175907","28/06/2017","Markets","Wholesale Market Facilities Management","R2101"
"Wolverhampton City Council","http://opendatacommunities.org/id/metropolitan-district-council/wolverhampton","705162","Local Government Association","40153592","150","Conference Expenses","130174027","28/06/2017","Licensing","Licensing - H.Carriage/Pr.Hire Vehicles","R4611"
"Wolverhampton City Council","http://opendatacommunities.org/id/metropolitan-district-council/wolverhampton","705162","Local Government Association","40153296","900","Training Expenses","130171584","02/06/2017","Human Resources","Centralised Training","R1650"
"Wolverhampton City Council","http://opendatacommunities.org/id/metropolitan-district-council/wolverhampton","705162","Local Government Association","40153297","1,350.00","Training Expenses","130172603","02/06/2017","Human Resources","Member Training","R1650"
"Wolverhampton City Council","http://opendatacommunities.org/id/metropolitan-district-council/wolverhampton","705183","Lodge Tyre Co.Limited","PE004703","3","Vehicle Maintenance - Spare Parts","190345169","14/06/2017","Fleet Services","Fleet Management","R3009"
"Wolverhampton City Council","http://opendatacommunities.org/id/metropolitan-district-council/wolverhampton","705183","Lodge Tyre Co.Limited","PE004703","25","Vehicle Maintenance - Spare Parts","190345169","14/06/2017","Fleet Services","Fleet Management","R3009"
"Wolverhampton City Council","http://opendatacommunities.org/id/metropolitan-district-council/wolverhampton","705183","Lodge Tyre Co.Limited","PE004703","30","Vehicle Maintenance - Spare Parts","190345169","14/06/2017","Fleet Services","Fleet Management","R3009"
"Wolverhampton City Council","http://opendatacommunities.org/id/metropolitan-district-council/wolverhampton","705183","Lodge Tyre Co.Limited","PE004703","390","Vehicle Maintenance - Spare Parts","190345169","14/06/2017","Fleet Services","Fleet Management","R3009"
"Wolverhampton City Council","http://opendatacommunities.org/id/metropolitan-district-council/wolverhampton","705183","Lodge Tyre Co.Limited","PE004703","15","Vehicle Maintenance - Spare Parts","190345169","14/06/2017","Fleet Services","Fleet Management","R3009"
"Wolverhampton City Council","http://opendatacommunities.org/id/metropolitan-district-council/wolverhampton","705183","Lodge Tyre Co.Limited","PE004703","30","Vehicle Maintenance - Spare Parts","190345169","14/06/2017","Fleet Services","Fleet Management","R3009"
"Wolverhampton City Council","http://opendatacommunities.org/id/metropolitan-district-council/wolverhampton","705183","Lodge Tyre Co.Limited","PE004703","30","Vehicle Maintenance - Spare Parts","190345169","14/06/2017","Fleet Services","Fleet Management","R3009"
"Wolverhampton City Council","http://opendatacommunities.org/id/metropolitan-district-council/wolverhampton","705183","Lodge Tyre Co.Limited","PE004703","25","Vehicle Maintenance - Spare Parts","190345169","14/06/2017","Fleet Services","Fleet Management","R3009"
"Wolverhampton City Council","http://opendatacommunities.org/id/metropolitan-district-council/wolverhampton","705183","Lodge Tyre Co.Limited","PE004703","195","Vehicle Maintenance - Spare Parts","190345169","14/06/2017","Fleet Services","Fleet Management","R3009"
"Wolverhampton City Council","http://opendatacommunities.org/id/metropolitan-district-council/wolverhampton","705183","Lodge Tyre Co.Limited","PE004703","15","Vehicle Maintenance - Spare Parts","190345169","14/06/2017","Fleet Services","Fleet Management","R3009"
"Wolverhampton City Council","http://opendatacommunities.org/id/metropolitan-district-council/wolverhampton","705183","Lodge Tyre Co.Limited","PE004703","390","Vehicle Maintenance - Spare Parts","190345169","14/06/2017","Fleet Services","Fleet Management","R3009"
"Wolverhampton City Council","http://opendatacommunities.org/id/metropolitan-district-council/wolverhampton","705183","Lodge Tyre Co.Limited","PE004703","585","Vehicle Maintenance - Spare Parts","190345169","14/06/2017","Fleet Services","Fleet Management","R3009"
"Wolverhampton City Council","http://opendatacommunities.org/id/metropolitan-district-council/wolverhampton","705183","Lodge Tyre Co.Limited","PE004703","195","Vehicle Maintenance - Spare Parts","190345169","14/06/2017","Fleet Services","Fleet Management","R3009"
"Wolverhampton City Council","http://opendatacommunities.org/id/metropolitan-district-council/wolverhampton","705183","Lodge Tyre Co.Limited","PE004703","50","Vehicle Maintenance - Spare Parts","190345169","14/06/2017","Fleet Services","Fleet Management","R3009"
"Wolverhampton City Council","http://opendatacommunities.org/id/metropolitan-district-council/wolverhampton","705183","Lodge Tyre Co.Limited","PE004703","390","Vehicle Maintenance - Spare Parts","190345169","14/06/2017","Fleet Services","Fleet Management","R3009"
"Wolverhampton City Council","http://opendatacommunities.org/id/metropolitan-district-council/wolverhampton","705183","Lodge Tyre Co.Limited","PE004703","390","Vehicle Maintenance - Spare Parts","190345169","14/06/2017","Fleet Services","Fleet Management","R3009"
"Wolverhampton City Council","http://opendatacommunities.org/id/metropolitan-district-council/wolverhampton","705183","Lodge Tyre Co.Limited","PE004703","50","Vehicle Maintenance - Spare Parts","190345169","14/06/2017","Fleet Services","Fleet Management","R3009"
"Wolverhampton City Council","http://opendatacommunities.org/id/metropolitan-district-council/wolverhampton","705183","Lodge Tyre Co.Limited","PE004703","60","Vehicle Maintenance - Spare Parts","190345169","14/06/2017","Fleet Services","Fleet Management","R3009"
"Wolverhampton City Council","http://opendatacommunities.org/id/metropolitan-district-council/wolverhampton","705183","Lodge Tyre Co.Limited","PE004703","195","Vehicle Maintenance - Spare Parts","190345169","14/06/2017","Fleet Services","Fleet Management","R3009"
"Wolverhampton City Council","http://opendatacommunities.org/id/metropolitan-district-council/wolverhampton","705183","Lodge Tyre Co.Limited","PE004703","390","Vehicle Maintenance - Spare Parts","190345169","14/06/2017","Fleet Services","Fleet Management","R3009"
"Wolverhampton City Council","http://opendatacommunities.org/id/metropolitan-district-council/wolverhampton","705183","Lodge Tyre Co.Limited","PE004703","195","Vehicle Maintenance - Spare Parts","190345169","14/06/2017","Fleet Services","Fleet Management","R3009"
"Wolverhampton City Council","http://opendatacommunities.org/id/metropolitan-district-council/wolverhampton","705183","Lodge Tyre Co.Limited","PE004703","50","Vehicle Maintenance - Spare Parts","190345169","14/06/2017","Fleet Services","Fleet Management","R3009"
"Wolverhampton City Council","http://opendatacommunities.org/id/metropolitan-district-council/wolverhampton","705183","Lodge Tyre Co.Limited","PE004703","195","Vehicle Maintenance - Spare Parts","190345169","14/06/2017","Fleet Services","Fleet Management","R3009"
"Wolverhampton City Council","http://opendatacommunities.org/id/metropolitan-district-council/wolverhampton","705183","Lodge Tyre Co.Limited","PE004703","75","Vehicle Maintenance - Spare Parts","190345169","14/06/2017","Fleet Services","Fleet Management","R3009"
"Wolverhampton City Council","http://opendatacommunities.org/id/metropolitan-district-council/wolverhampton","705183","Lodge Tyre Co.Limited","PE004703","25","Vehicle Maintenance - Spare Parts","190345169","14/06/2017","Fleet Services","Fleet Management","R3009"
"Wolverhampton City Council","http://opendatacommunities.org/id/metropolitan-district-council/wolverhampton","705183","Lodge Tyre Co.Limited","PE004703","195","Vehicle Maintenance - Spare Parts","190345169","14/06/2017","Fleet Services","Fleet Management","R3009"
"Wolverhampton City Council","http://opendatacommunities.org/id/metropolitan-district-council/wolverhampton","705183","Lodge Tyre Co.Limited","PE004703","46.5","Vehicle Maintenance - Spare Parts","190345169","14/06/2017","Fleet Services","Fleet Management","R3009"
"Wolverhampton City Council","http://opendatacommunities.org/id/metropolitan-district-council/wolverhampton","705183","Lodge Tyre Co.Limited","PE004703","30","Vehicle Maintenance - Spare Parts","190345169","14/06/2017","Fleet Services","Fleet Management","R3009"
"Wolverhampton City Council","http://opendatacommunities.org/id/metropolitan-district-council/wolverhampton","705183","Lodge Tyre Co.Limited","PE004703","85","Vehicle Maintenance - Spare Parts","190345169","14/06/2017","Fleet Services","Fleet Management","R3009"
"Wolverhampton City Council","http://opendatacommunities.org/id/metropolitan-district-council/wolverhampton","705183","Lodge Tyre Co.Limited","PE004703","25","Vehicle Maintenance - Spare Parts","190345169","14/06/2017","Fleet Services","Fleet Management","R3009"
"Wolverhampton City Council","http://opendatacommunities.org/id/metropolitan-district-council/wolverhampton","705183","Lodge Tyre Co.Limited","PE004703","44","Vehicle Maintenance - Spare Parts","190345169","14/06/2017","Fleet Services","Fleet Management","R3009"
"Wolverhampton City Council","http://opendatacommunities.org/id/metropolitan-district-council/wolverhampton","705183","Lodge Tyre Co.Limited","PE004703","41.5","Vehicle Maintenance - Spare Parts","190345169","14/06/2017","Fleet Services","Fleet Management","R3009"
"Wolverhampton City Council","http://opendatacommunities.org/id/metropolitan-district-council/wolverhampton","705183","Lodge Tyre Co.Limited","PE004703","50","Vehicle Maintenance - Spare Parts","190345169","14/06/2017","Fleet Services","Fleet Management","R3009"
"Wolverhampton City Council","http://opendatacommunities.org/id/metropolitan-district-council/wolverhampton","705183","Lodge Tyre Co.Limited","PE004703","50","Vehicle Maintenance - Spare Parts","190345169","14/06/2017","Fleet Services","Fleet Management","R3009"
"Wolverhampton City Council","http://opendatacommunities.org/id/metropolitan-district-council/wolverhampton","705183","Lodge Tyre Co.Limited","PE004703","100","Vehicle Maintenance - Spare Parts","190345169","14/06/2017","Fleet Services","Fleet Management","R3009"
"Wolverhampton City Council","http://opendatacommunities.org/id/metropolitan-district-council/wolverhampton","705183","Lodge Tyre Co.Limited","PE004703","390","Vehicle Maintenance - Spare Parts","190345169","14/06/2017","Fleet Services","Fleet Management","R3009"
"Wolverhampton City Council","http://opendatacommunities.org/id/metropolitan-district-council/wolverhampton","705183","Lodge Tyre Co.Limited","PE004703","50","Vehicle Maintenance - Spare Parts","190345169","14/06/2017","Fleet Services","Fleet Management","R3009"
"Wolverhampton City Council","http://opendatacommunities.org/id/metropolitan-district-council/wolverhampton","705183","Lodge Tyre Co.Limited","PE004703","50","Vehicle Maintenance - Spare Parts","190345169","14/06/2017","Fleet Services","Fleet Management","R3009"
"Wolverhampton City Council","http://opendatacommunities.org/id/metropolitan-district-council/wolverhampton","705183","Lodge Tyre Co.Limited","PE004703","50","Vehicle Maintenance - Spare Parts","190345169","14/06/2017","Fleet Services","Fleet Management","R3009"
"Wolverhampton City Council","http://opendatacommunities.org/id/metropolitan-district-council/wolverhampton","705183","Lodge Tyre Co.Limited","PE004703","25","Vehicle Maintenance - Spare Parts","190345169","14/06/2017","Fleet Services","Fleet Management","R3009"
"Wolverhampton City Council","http://opendatacommunities.org/id/metropolitan-district-council/wolverhampton","705183","Lodge Tyre Co.Limited","PE004703","30","Vehicle Maintenance - Spare Parts","190345169","14/06/2017","Fleet Services","Fleet Management","R3009"
"Wolverhampton City Council","http://opendatacommunities.org/id/metropolitan-district-council/wolverhampton","705183","Lodge Tyre Co.Limited","PE004703","3","Vehicle Maintenance - Spare Parts","190345169","14/06/2017","Fleet Services","Fleet Management","R3009"
"Wolverhampton City Council","http://opendatacommunities.org/id/metropolitan-district-council/wolverhampton","705183","Lodge Tyre Co.Limited","PE004703","60","Vehicle Maintenance - Spare Parts","190345169","14/06/2017","Fleet Services","Fleet Management","R3009"
"Wolverhampton City Council","http://opendatacommunities.org/id/metropolitan-district-council/wolverhampton","705183","Lodge Tyre Co.Limited","PE004703","46.5","Vehicle Maintenance - Spare Parts","190345169","14/06/2017","Fleet Services","Fleet Management","R3009"
"Wolverhampton City Council","http://opendatacommunities.org/id/metropolitan-district-council/wolverhampton","705183","Lodge Tyre Co.Limited","PE004703","120","Vehicle Maintenance - Spare Parts","190345169","14/06/2017","Fleet Services","Fleet Management","R3009"
"Wolverhampton City Council","http://opendatacommunities.org/id/metropolitan-district-council/wolverhampton","705183","Lodge Tyre Co.Limited","PE004703","130","Vehicle Maintenance - Spare Parts","190345169","14/06/2017","Fleet Services","Fleet Management","R3009"
"Wolverhampton City Council","http://opendatacommunities.org/id/metropolitan-district-council/wolverhampton","705183","Lodge Tyre Co.Limited","PE004703","15","Vehicle Maintenance - Spare Parts","190345169","14/06/2017","Fleet Services","Fleet Management","R3009"
"Wolverhampton City Council","http://opendatacommunities.org/id/metropolitan-district-council/wolverhampton","705183","Lodge Tyre Co.Limited","PE004703","60","Vehicle Maintenance - Spare Parts","190345169","14/06/2017","Fleet Services","Fleet Management","R3009"
"Wolverhampton City Council","http://opendatacommunities.org/id/metropolitan-district-council/wolverhampton","705183","Lodge Tyre Co.Limited","PE004703","89","Vehicle Maintenance - Spare Parts","190345169","14/06/2017","Fleet Services","Fleet Management","R3009"
"Wolverhampton City Council","http://opendatacommunities.org/id/metropolitan-district-council/wolverhampton","705183","Lodge Tyre Co.Limited","PE004703","57","Vehicle Maintenance - Spare Parts","190345169","14/06/2017","Fleet Services","Fleet Management","R3009"
"Wolverhampton City Council","http://opendatacommunities.org/id/metropolitan-district-council/wolverhampton","705183","Lodge Tyre Co.Limited","PE004703","30","Vehicle Maintenance - Spare Parts","190345169","14/06/2017","Fleet Services","Fleet Management","R3009"
"Wolverhampton City Council","http://opendatacommunities.org/id/metropolitan-district-council/wolverhampton","705183","Lodge Tyre Co.Limited","PE004703","89","Vehicle Maintenance - Spare Parts","190345169","14/06/2017","Fleet Services","Fleet Management","R3009"
"Wolverhampton City Council","http://opendatacommunities.org/id/metropolitan-district-council/wolverhampton","705183","Lodge Tyre Co.Limited","PE004703","57","Vehicle Maintenance - Spare Parts","190345169","14/06/2017","Fleet Services","Fleet Management","R3009"
"Wolverhampton City Council","http://opendatacommunities.org/id/metropolitan-district-council/wolverhampton","705183","Lodge Tyre Co.Limited","PE004703","57","Vehicle Maintenance - Spare Parts","190345169","14/06/2017","Fleet Services","Fleet Management","R3009"
"Wolverhampton City Council","http://opendatacommunities.org/id/metropolitan-district-council/wolverhampton","705183","Lodge Tyre Co.Limited","PE004703","15","Vehicle Maintenance - Spare Parts","190345169","14/06/2017","Fleet Services","Fleet Management","R3009"
"Wolverhampton City Council","http://opendatacommunities.org/id/metropolitan-district-council/wolverhampton","705183","Lodge Tyre Co.Limited","PE004703","30","Vehicle Maintenance - Spare Parts","190345169","14/06/2017","Fleet Services","Fleet Management","R3009"
"Wolverhampton City Council","http://opendatacommunities.org/id/metropolitan-district-council/wolverhampton","705183","Lodge Tyre Co.Limited","PE004703","312.34","Vehicle Maintenance - Spare Parts","190345169","14/06/2017","Fleet Services","Fleet Management","R3009"
"Wolverhampton City Council","http://opendatacommunities.org/id/metropolitan-district-council/wolverhampton","705183","Lodge Tyre Co.Limited","PE004703","15","Vehicle Maintenance - Spare Parts","190345169","14/06/2017","Fleet Services","Fleet Management","R3009"
"Wolverhampton City Council","http://opendatacommunities.org/id/metropolitan-district-council/wolverhampton","705183","Lodge Tyre Co.Limited","PE004703","65","Vehicle Maintenance - Spare Parts","190345169","14/06/2017","Fleet Services","Fleet Management","R3009"
"Wolverhampton City Council","http://opendatacommunities.org/id/metropolitan-district-council/wolverhampton","705183","Lodge Tyre Co.Limited","PE004703","15","Vehicle Maintenance - Spare Parts","190345169","14/06/2017","Fleet Services","Fleet Management","R3009"
"Wolverhampton City Council","http://opendatacommunities.org/id/metropolitan-district-council/wolverhampton","705183","Lodge Tyre Co.Limited","PE004703","30","Vehicle Maintenance - Spare Parts","190345169","14/06/2017","Fleet Services","Fleet Management","R3009"
"Wolverhampton City Council","http://opendatacommunities.org/id/metropolitan-district-council/wolverhampton","705183","Lodge Tyre Co.Limited","PE004703","70","Vehicle Maintenance - Spare Parts","190345169","14/06/2017","Fleet Services","Fleet Management","R3009"
"Wolverhampton City Council","http://opendatacommunities.org/id/metropolitan-district-council/wolverhampton","705183","Lodge Tyre Co.Limited","PE004703","54","Vehicle Maintenance - Spare Parts","190345169","14/06/2017","Fleet Services","Fleet Management","R3009"
"Wolverhampton City Council","http://opendatacommunities.org/id/metropolitan-district-council/wolverhampton","705183","Lodge Tyre Co.Limited","PE004703","44","Vehicle Maintenance - Spare Parts","190345169","14/06/2017","Fleet Services","Fleet Management","R3009"
"Wolverhampton City Council","http://opendatacommunities.org/id/metropolitan-district-council/wolverhampton","705183","Lodge Tyre Co.Limited","PE004703","198","Vehicle Maintenance - Spare Parts","190345169","14/06/2017","Fleet Services","Fleet Management","R3009"
"Wolverhampton City Council","http://opendatacommunities.org/id/metropolitan-district-council/wolverhampton","705183","Lodge Tyre Co.Limited","PE004703","280","Vehicle Maintenance - Spare Parts","190345169","14/06/2017","Fleet Services","Fleet Management","R3009"
"Wolverhampton City Council","http://opendatacommunities.org/id/metropolitan-district-council/wolverhampton","705183","Lodge Tyre Co.Limited","PE004703","45","Vehicle Maintenance - Spare Parts","190345169","14/06/2017","Fleet Services","Fleet Management","R3009"
"Wolverhampton City Council","http://opendatacommunities.org/id/metropolitan-district-council/wolverhampton","705183","Lodge Tyre Co.Limited","PE004703","15","Vehicle Maintenance - Spare Parts","190345169","14/06/2017","Fleet Services","Fleet Management","R3009"
"Wolverhampton City Council","http://opendatacommunities.org/id/metropolitan-district-council/wolverhampton","705183","Lodge Tyre Co.Limited","PE004703","108","Vehicle Maintenance - Spare Parts","190345169","14/06/2017","Fleet Services","Fleet Management","R3009"
"Wolverhampton City Council","http://opendatacommunities.org/id/metropolitan-district-council/wolverhampton","705183","Lodge Tyre Co.Limited","PE004703","15","Vehicle Maintenance - Spare Parts","190345169","14/06/2017","Fleet Services","Fleet Management","R3009"
"Wolverhampton City Council","http://opendatacommunities.org/id/metropolitan-district-council/wolverhampton","705183","Lodge Tyre Co.Limited","PE004703","46.5","Vehicle Maintenance - Spare Parts","190345169","14/06/2017","Fleet Services","Fleet Management","R3009"
"Wolverhampton City Council","http://opendatacommunities.org/id/metropolitan-district-council/wolverhampton","705183","Lodge Tyre Co.Limited","PE004703","30","Vehicle Maintenance - Spare Parts","190345169","14/06/2017","Fleet Services","Fleet Management","R3009"
"Wolverhampton City Council","http://opendatacommunities.org/id/metropolitan-district-council/wolverhampton","705183","Lodge Tyre Co.Limited","PE004703","195","Vehicle Maintenance - Spare Parts","190345169","14/06/2017","Fleet Services","Fleet Management","R3009"
"Wolverhampton City Council","http://opendatacommunities.org/id/metropolitan-district-council/wolverhampton","705183","Lodge Tyre Co.Limited","PE004703","44","Vehicle Maintenance - Spare Parts","190345169","14/06/2017","Fleet Services","Fleet Management","R3009"
"Wolverhampton City Council","http://opendatacommunities.org/id/metropolitan-district-council/wolverhampton","705183","Lodge Tyre Co.Limited","PE004703","30","Vehicle Maintenance - Spare Parts","190345169","14/06/2017","Fleet Services","Fleet Management","R3009"
"Wolverhampton City Council","http://opendatacommunities.org/id/metropolitan-district-council/wolverhampton","705183","Lodge Tyre Co.Limited","PE004703","15","Vehicle Maintenance - Spare Parts","190345169","14/06/2017","Fleet Services","Fleet Management","R3009"
"Wolverhampton City Council","http://opendatacommunities.org/id/metropolitan-district-council/wolverhampton","705183","Lodge Tyre Co.Limited","PE004703","108","Vehicle Maintenance - Spare Parts","190345169","14/06/2017","Fleet Services","Fleet Management","R3009"
"Wolverhampton City Council","http://opendatacommunities.org/id/metropolitan-district-council/wolverhampton","705183","Lodge Tyre Co.Limited","PE004703","60","Vehicle Maintenance - Spare Parts","190345169","14/06/2017","Fleet Services","Fleet Management","R3009"
"Wolverhampton City Council","http://opendatacommunities.org/id/metropolitan-district-council/wolverhampton","705183","Lodge Tyre Co.Limited","PE004703","99","Vehicle Maintenance - Spare Parts","190345169","14/06/2017","Fleet Services","Fleet Management","R3009"
"Wolverhampton City Council","http://opendatacommunities.org/id/metropolitan-district-council/wolverhampton","705183","Lodge Tyre Co.Limited","PE004703","66.5","Vehicle Maintenance - Spare Parts","190345169","14/06/2017","Fleet Services","Fleet Management","R3009"
"Wolverhampton City Council","http://opendatacommunities.org/id/metropolitan-district-council/wolverhampton","705183","Lodge Tyre Co.Limited","PE004703","120","Vehicle Maintenance - Spare Parts","190345169","14/06/2017","Fleet Services","Fleet Management","R3009"
"Wolverhampton City Council","http://opendatacommunities.org/id/metropolitan-district-council/wolverhampton","705183","Lodge Tyre Co.Limited","PE004703","88","Vehicle Maintenance - Spare Parts","190345169","14/06/2017","Fleet Services","Fleet Management","R3009"
"Wolverhampton City Council","http://opendatacommunities.org/id/metropolitan-district-council/wolverhampton","705183","Lodge Tyre Co.Limited","PE004703","390","Vehicle Maintenance - Spare Parts","190345169","14/06/2017","Fleet Services","Fleet Management","R3009"
"Wolverhampton City Council","http://opendatacommunities.org/id/metropolitan-district-council/wolverhampton","705183","Lodge Tyre Co.Limited","PE004703","50","Vehicle Maintenance - Spare Parts","190345169","14/06/2017","Fleet Services","Fleet Management","R3009"
"Wolverhampton City Council","http://opendatacommunities.org/id/metropolitan-district-council/wolverhampton","705183","Lodge Tyre Co.Limited","PE004703","197.22","Vehicle Maintenance - Spare Parts","190345169","14/06/2017","Fleet Services","Fleet Management","R3009"
"Wolverhampton City Council","http://opendatacommunities.org/id/metropolitan-district-council/wolverhampton","705183","Lodge Tyre Co.Limited","PE004703","450","Vehicle Maintenance - Spare Parts","190345169","14/06/2017","Fleet Services","Fleet Management","R3009"
"Wolverhampton City Council","http://opendatacommunities.org/id/metropolitan-district-council/wolverhampton","705183","Lodge Tyre Co.Limited","PE004703","50","Vehicle Maintenance - Spare Parts","190345169","14/06/2017","Fleet Services","Fleet Management","R3009"
"Wolverhampton City Council","http://opendatacommunities.org/id/metropolitan-district-council/wolverhampton","705183","Lodge Tyre Co.Limited","PE004703","197.22","Vehicle Maintenance - Spare Parts","190345169","14/06/2017","Fleet Services","Fleet Management","R3009"
"Wolverhampton City Council","http://opendatacommunities.org/id/metropolitan-district-council/wolverhampton","705183","Lodge Tyre Co.Limited","PE004703","53","Vehicle Maintenance - Spare Parts","190345169","14/06/2017","Fleet Services","Fleet Management","R3009"
"Wolverhampton City Council","http://opendatacommunities.org/id/metropolitan-district-council/wolverhampton","705183","Lodge Tyre Co.Limited","PE004703","240","Vehicle Maintenance - Spare Parts","190345169","14/06/2017","Fleet Services","Fleet Management","R3009"
"Wolverhampton City Council","http://opendatacommunities.org/id/metropolitan-district-council/wolverhampton","705183","Lodge Tyre Co.Limited","PE004703","120","Vehicle Maintenance - Spare Parts","190345169","14/06/2017","Fleet Services","Fleet Management","R3009"
"Wolverhampton City Council","http://opendatacommunities.org/id/metropolitan-district-council/wolverhampton","705183","Lodge Tyre Co.Limited","PE004703","120","Vehicle Maintenance - Spare Parts","190345169","14/06/2017","Fleet Services","Fleet Management","R3009"
"Wolverhampton City Council","http://opendatacommunities.org/id/metropolitan-district-council/wolverhampton","705183","Lodge Tyre Co.Limited","PE004703","70","Vehicle Maintenance - Spare Parts","190345169","14/06/2017","Fleet Services","Fleet Management","R3009"
"Wolverhampton City Council","http://opendatacommunities.org/id/metropolitan-district-council/wolverhampton","705183","Lodge Tyre Co.Limited","PE004703","25","Vehicle Maintenance - Spare Parts","190345169","14/06/2017","Fleet Services","Fleet Management","R3009"
"Wolverhampton City Council","http://opendatacommunities.org/id/metropolitan-district-council/wolverhampton","705183","Lodge Tyre Co.Limited","PE004703","46.5","Vehicle Maintenance - Spare Parts","190345169","14/06/2017","Fleet Services","Fleet Management","R3009"
"Wolverhampton City Council","http://opendatacommunities.org/id/metropolitan-district-council/wolverhampton","705183","Lodge Tyre Co.Limited","PE004703","30","Vehicle Maintenance - Spare Parts","190345169","14/06/2017","Fleet Services","Fleet Management","R3009"
"Wolverhampton City Council","http://opendatacommunities.org/id/metropolitan-district-council/wolverhampton","705183","Lodge Tyre Co.Limited","PE004703","390","Vehicle Maintenance - Spare Parts","190345169","14/06/2017","Fleet Services","Fleet Management","R3009"
"Wolverhampton City Council","http://opendatacommunities.org/id/metropolitan-district-council/wolverhampton","705183","Lodge Tyre Co.Limited","PE004703","50","Vehicle Maintenance - Spare Parts","190345169","14/06/2017","Fleet Services","Fleet Management","R3009"
"Wolverhampton City Council","http://opendatacommunities.org/id/metropolitan-district-council/wolverhampton","705183","Lodge Tyre Co.Limited","PE004703","30","Vehicle Maintenance - Spare Parts","190345169","14/06/2017","Fleet Services","Fleet Management","R3009"
"Wolverhampton City Council","http://opendatacommunities.org/id/metropolitan-district-council/wolverhampton","705183","Lodge Tyre Co.Limited","PE004703","390","Vehicle Maintenance - Spare Parts","190345169","14/06/2017","Fleet Services","Fleet Management","R3009"
"Wolverhampton City Council","http://opendatacommunities.org/id/metropolitan-district-council/wolverhampton","705183","Lodge Tyre Co.Limited","PE004703","25","Vehicle Maintenance - Spare Parts","190345169","14/06/2017","Fleet Services","Fleet Management","R3009"
"Wolverhampton City Council","http://opendatacommunities.org/id/metropolitan-district-council/wolverhampton","705183","Lodge Tyre Co.Limited","PE004703","57","Vehicle Maintenance - Spare Parts","190345169","14/06/2017","Fleet Services","Fleet Management","R3009"
"Wolverhampton City Council","http://opendatacommunities.org/id/metropolitan-district-council/wolverhampton","705183","Lodge Tyre Co.Limited","PE004703","99","Vehicle Maintenance - Spare Parts","190345169","14/06/2017","Fleet Services","Fleet Management","R3009"
"Wolverhampton City Council","http://opendatacommunities.org/id/metropolitan-district-council/wolverhampton","705183","Lodge Tyre Co.Limited","PE004703","130","Vehicle Maintenance - Spare Parts","190345169","14/06/2017","Fleet Services","Fleet Management","R3009"
"Wolverhampton City Council","http://opendatacommunities.org/id/metropolitan-district-council/wolverhampton","705183","Lodge Tyre Co.Limited","PE004703","44","Vehicle Maintenance - Spare Parts","190345169","14/06/2017","Fleet Services","Fleet Management","R3009"
"Wolverhampton City Council","http://opendatacommunities.org/id/metropolitan-district-council/wolverhampton","705183","Lodge Tyre Co.Limited","PE004703","15","Vehicle Maintenance - Spare Parts","190345169","14/06/2017","Fleet Services","Fleet Management","R3009"
"Wolverhampton City Council","http://opendatacommunities.org/id/metropolitan-district-council/wolverhampton","705183","Lodge Tyre Co.Limited","PE004703","3","Vehicle Maintenance - Spare Parts","190345169","14/06/2017","Fleet Services","Fleet Management","R3009"
"Wolverhampton City Council","http://opendatacommunities.org/id/metropolitan-district-council/wolverhampton","705183","Lodge Tyre Co.Limited","PE004703","3","Vehicle Maintenance - Spare Parts","190345169","14/06/2017","Fleet Services","Fleet Management","R3009"
"Wolverhampton City Council","http://opendatacommunities.org/id/metropolitan-district-council/wolverhampton","705183","Lodge Tyre Co.Limited","PE004703","41.5","Vehicle Maintenance - Spare Parts","190345169","14/06/2017","Fleet Services","Fleet Management","R3009"
"Wolverhampton City Council","http://opendatacommunities.org/id/metropolitan-district-council/wolverhampton","705183","Lodge Tyre Co.Limited","PE004703","3","Vehicle Maintenance - Spare Parts","190345169","14/06/2017","Fleet Services","Fleet Management","R3009"
"Wolverhampton City Council","http://opendatacommunities.org/id/metropolitan-district-council/wolverhampton","705183","Lodge Tyre Co.Limited","PE004703","30","Vehicle Maintenance - Spare Parts","190345169","14/06/2017","Fleet Services","Fleet Management","R3009"
"Wolverhampton City Council","http://opendatacommunities.org/id/metropolitan-district-council/wolverhampton","705183","Lodge Tyre Co.Limited","PE004703","195","Vehicle Maintenance - Spare Parts","190345169","14/06/2017","Fleet Services","Fleet Management","R3009"
"Wolverhampton City Council","http://opendatacommunities.org/id/metropolitan-district-council/wolverhampton","705194","Longford Primary School","P14494420170609","600","Grant Payments to Individuals","190344857","14/06/2017","Looked After Children","LAC Education Team (LACE)","R6402"
"Wolverhampton City Council","http://opendatacommunities.org/id/metropolitan-district-council/wolverhampton","705210","Low Hill Community Association","68","500","Room Hire","130173164","09/06/2017","Skills","Employment Programmes","R2201"
"Wolverhampton City Council","http://opendatacommunities.org/id/metropolitan-district-council/wolverhampton","705210","Low Hill Community Association","39","150","Room Hire","130172812","02/06/2017","Safeguarding","Safeguarding Board - Childrens","R2201"
"Wolverhampton City Council","http://opendatacommunities.org/id/metropolitan-district-council/wolverhampton","705223","Lucy Zodion Limited","169574","7,150.00","Materials","130174239","23/06/2017","Street Lighting","Signs Illuminated","R4007"
"Wolverhampton City Council","http://opendatacommunities.org/id/metropolitan-district-council/wolverhampton","705225","Luscombe Cider Limited","145011","302.17","Provisions (Resale)","130174028","14/06/2017","Visitor Economy","Bantock - Tea Rooms","R4102"
"Wolverhampton City Council","http://opendatacommunities.org/id/metropolitan-district-council/wolverhampton","705225","Luscombe Cider Limited","145374","21.65","Provisions (Resale)","130175453","16/06/2017","Visitor Economy","Bantock - Tea Rooms","R4102"
"Wolverhampton City Council","http://opendatacommunities.org/id/metropolitan-district-council/wolverhampton","705274","M.K.G. (Food Products) Limited","33395","70.98","Provisions (Resale)","130175454","30/06/2017","Visitor Economy","Art Gallery Tea Room","R4102"
"Wolverhampton City Council","http://opendatacommunities.org/id/metropolitan-district-council/wolverhampton","705274","M.K.G. (Food Products) Limited","33395","-70.98","Provisions (Resale)","130175454","30/06/2017","Visitor Economy","Art Gallery Tea Room","R4102"
"Wolverhampton City Council","http://opendatacommunities.org/id/metropolitan-district-council/wolverhampton","705274","M.K.G. (Food Products) Limited","33395","3.25","Provisions (Resale)","130175454","30/06/2017","Visitor Economy","Art Gallery Tea Room","R4102"
"Wolverhampton City Council","http://opendatacommunities.org/id/metropolitan-district-council/wolverhampton","705274","M.K.G. (Food Products) Limited","33395","67.73","Provisions (Resale)","130175454","30/06/2017","Visitor Economy","Art Gallery Tea Room","R4102"
"Wolverhampton City Council","http://opendatacommunities.org/id/metropolitan-district-council/wolverhampton","705274","M.K.G. (Food Products) Limited","31542","-219.25","Provisions (Resale)","130173610","21/06/2017","Visitor Economy","Bantock - Tea Rooms","R4102"
"Wolverhampton City Council","http://opendatacommunities.org/id/metropolitan-district-council/wolverhampton","705274","M.K.G. (Food Products) Limited","31542","18","Provisions (Resale)","130173610","21/06/2017","Visitor Economy","Bantock - Tea Rooms","R4102"
"Wolverhampton City Council","http://opendatacommunities.org/id/metropolitan-district-council/wolverhampton","705274","M.K.G. (Food Products) Limited","31542","201.25","Provisions (Resale)","130173610","21/06/2017","Visitor Economy","Bantock - Tea Rooms","R4102"
"Wolverhampton City Council","http://opendatacommunities.org/id/metropolitan-district-council/wolverhampton","705274","M.K.G. (Food Products) Limited","31973","375.53","Provisions (Resale)","130173612","21/06/2017","Visitor Economy","Bantock - Tea Rooms","R4102"
"Wolverhampton City Council","http://opendatacommunities.org/id/metropolitan-district-council/wolverhampton","705274","M.K.G. (Food Products) Limited","31542","219.25","Provisions (Resale)","130173610","21/06/2017","Visitor Economy","Bantock - Tea Rooms","R4102"
"Wolverhampton City Council","http://opendatacommunities.org/id/metropolitan-district-council/wolverhampton","705274","M.K.G. (Food Products) Limited","31543","154.65","Provisions (Resale)","130173611","21/06/2017","Visitor Economy","Art Gallery Tea Room","R4102"
"Wolverhampton City Council","http://opendatacommunities.org/id/metropolitan-district-council/wolverhampton","705274","M.K.G. (Food Products) Limited","31543","-154.65","Provisions (Resale)","130173611","21/06/2017","Visitor Economy","Art Gallery Tea Room","R4102"
"Wolverhampton City Council","http://opendatacommunities.org/id/metropolitan-district-council/wolverhampton","705274","M.K.G. (Food Products) Limited","31543","35.66","Provisions (Resale)","130173611","21/06/2017","Visitor Economy","Art Gallery Tea Room","R4102"
"Wolverhampton City Council","http://opendatacommunities.org/id/metropolitan-district-council/wolverhampton","705274","M.K.G. (Food Products) Limited","31543","118.99","Provisions (Resale)","130173611","21/06/2017","Visitor Economy","Art Gallery Tea Room","R4102"
"Wolverhampton City Council","http://opendatacommunities.org/id/metropolitan-district-council/wolverhampton","705274","M.K.G. (Food Products) Limited","31973","388.53","Provisions (Resale)","130173612","21/06/2017","Visitor Economy","Bantock - Tea Rooms","R4102"
"Wolverhampton City Council","http://opendatacommunities.org/id/metropolitan-district-council/wolverhampton","705274","M.K.G. (Food Products) Limited","31973","-388.53","Provisions (Resale)","130173612","21/06/2017","Visitor Economy","Bantock - Tea Rooms","R4102"
"Wolverhampton City Council","http://opendatacommunities.org/id/metropolitan-district-council/wolverhampton","705274","M.K.G. (Food Products) Limited","31973","13","Provisions (Resale)","130173612","21/06/2017","Visitor Economy","Bantock - Tea Rooms","R4102"
"Wolverhampton City Council","http://opendatacommunities.org/id/metropolitan-district-council/wolverhampton","705274","M.K.G. (Food Products) Limited","32986","306.22","Provisions (Resale)","130174656","28/06/2017","Visitor Economy","Art Gallery Tea Room","R4102"
"Wolverhampton City Council","http://opendatacommunities.org/id/metropolitan-district-council/wolverhampton","705274","M.K.G. (Food Products) Limited","32986","-306.22","Provisions (Resale)","130174656","28/06/2017","Visitor Economy","Art Gallery Tea Room","R4102"
"Wolverhampton City Council","http://opendatacommunities.org/id/metropolitan-district-council/wolverhampton","705274","M.K.G. (Food Products) Limited","32986","306.22","Provisions (Resale)","130174656","28/06/2017","Visitor Economy","Art Gallery Tea Room","R4102"
"Wolverhampton City Council","http://opendatacommunities.org/id/metropolitan-district-council/wolverhampton","705274","M.K.G. (Food Products) Limited","32985","501.84","Provisions (Resale)","130174655","28/06/2017","Visitor Economy","Bantock - Tea Rooms","R4102"
"Wolverhampton City Council","http://opendatacommunities.org/id/metropolitan-district-council/wolverhampton","705274","M.K.G. (Food Products) Limited","32985","-501.84","Provisions (Resale)","130174655","28/06/2017","Visitor Economy","Bantock - Tea Rooms","R4102"
"Wolverhampton City Council","http://opendatacommunities.org/id/metropolitan-district-council/wolverhampton","705274","M.K.G. (Food Products) Limited","32985","85.82","Provisions (Resale)","130174655","28/06/2017","Visitor Economy","Bantock - Tea Rooms","R4102"
"Wolverhampton City Council","http://opendatacommunities.org/id/metropolitan-district-council/wolverhampton","705274","M.K.G. (Food Products) Limited","32985","416.02","Provisions (Resale)","130174655","28/06/2017","Visitor Economy","Bantock - Tea Rooms","R4102"
"Wolverhampton City Council","http://opendatacommunities.org/id/metropolitan-district-council/wolverhampton","705274","M.K.G. (Food Products) Limited","32579","34.36","Provisions (Resale)","130174654","28/06/2017","Visitor Economy","Art Gallery Tea Room","R4102"
"Wolverhampton City Council","http://opendatacommunities.org/id/metropolitan-district-council/wolverhampton","705274","M.K.G. (Food Products) Limited","32579","221.9","Provisions (Resale)","130174654","28/06/2017","Visitor Economy","Art Gallery Tea Room","R4102"
"Wolverhampton City Council","http://opendatacommunities.org/id/metropolitan-district-council/wolverhampton","705274","M.K.G. (Food Products) Limited","32576","500.66","Provisions (Resale)","130174653","28/06/2017","Visitor Economy","Bantock - Tea Rooms","R4102"
"Wolverhampton City Council","http://opendatacommunities.org/id/metropolitan-district-council/wolverhampton","705274","M.K.G. (Food Products) Limited","32576","-500.66","Provisions (Resale)","130174653","28/06/2017","Visitor Economy","Bantock - Tea Rooms","R4102"
"Wolverhampton City Council","http://opendatacommunities.org/id/metropolitan-district-council/wolverhampton","705274","M.K.G. (Food Products) Limited","32576","53.98","Provisions (Resale)","130174653","28/06/2017","Visitor Economy","Bantock - Tea Rooms","R4102"
"Wolverhampton City Council","http://opendatacommunities.org/id/metropolitan-district-council/wolverhampton","705274","M.K.G. (Food Products) Limited","32579","256.26","Provisions (Resale)","130174654","28/06/2017","Visitor Economy","Art Gallery Tea Room","R4102"
"Wolverhampton City Council","http://opendatacommunities.org/id/metropolitan-district-council/wolverhampton","705274","M.K.G. (Food Products) Limited","32579","-256.26","Provisions (Resale)","130174654","28/06/2017","Visitor Economy","Art Gallery Tea Room","R4102"
"Wolverhampton City Council","http://opendatacommunities.org/id/metropolitan-district-council/wolverhampton","705274","M.K.G. (Food Products) Limited","32576","446.68","Provisions (Resale)","130174653","28/06/2017","Visitor Economy","Bantock - Tea Rooms","R4102"
"Wolverhampton City Council","http://opendatacommunities.org/id/metropolitan-district-council/wolverhampton","705274","M.K.G. (Food Products) Limited","31148","158.64","Provisions (Resale)","130173608","16/06/2017","Visitor Economy","Bantock - Tea Rooms","R4102"
"Wolverhampton City Council","http://opendatacommunities.org/id/metropolitan-district-council/wolverhampton","705274","M.K.G. (Food Products) Limited","31150","146.9","Provisions (Resale)","130173609","16/06/2017","Visitor Economy","Art Gallery Tea Room","R4102"
"Wolverhampton City Council","http://opendatacommunities.org/id/metropolitan-district-council/wolverhampton","705274","M.K.G. (Food Products) Limited","30738","81.12","Provisions (Resale)","130172816","14/06/2017","Visitor Economy","Bantock - Tea Rooms","R4102"
"Wolverhampton City Council","http://opendatacommunities.org/id/metropolitan-district-council/wolverhampton","705274","M.K.G. (Food Products) Limited","30738","-81.12","Provisions (Resale)","130172816","14/06/2017","Visitor Economy","Bantock - Tea Rooms","R4102"
"Wolverhampton City Council","http://opendatacommunities.org/id/metropolitan-district-council/wolverhampton","705274","M.K.G. (Food Products) Limited","30738","81.12","Provisions (Resale)","130172816","14/06/2017","Visitor Economy","Bantock - Tea Rooms","R4102"
"Wolverhampton City Council","http://opendatacommunities.org/id/metropolitan-district-council/wolverhampton","705274","M.K.G. (Food Products) Limited","30270","150.12","Provisions (Resale)","130172815","14/06/2017","Visitor Economy","Bantock - Tea Rooms","R4102"
"Wolverhampton City Council","http://opendatacommunities.org/id/metropolitan-district-council/wolverhampton","705274","M.K.G. (Food Products) Limited","30270","-150.12","Provisions (Resale)","130172815","14/06/2017","Visitor Economy","Bantock - Tea Rooms","R4102"
"Wolverhampton City Council","http://opendatacommunities.org/id/metropolitan-district-council/wolverhampton","705274","M.K.G. (Food Products) Limited","30270","109.58","Provisions (Resale)","130172815","14/06/2017","Visitor Economy","Bantock - Tea Rooms","R4102"
"Wolverhampton City Council","http://opendatacommunities.org/id/metropolitan-district-council/wolverhampton","705274","M.K.G. (Food Products) Limited","30270","40.54","Provisions (Resale)","130172815","14/06/2017","Visitor Economy","Bantock - Tea Rooms","R4102"
"Wolverhampton City Council","http://opendatacommunities.org/id/metropolitan-district-council/wolverhampton","705274","M.K.G. (Food Products) Limited","30739","179.43","Provisions (Resale)","130172817","14/06/2017","Visitor Economy","Art Gallery Tea Room","R4102"
"Wolverhampton City Council","http://opendatacommunities.org/id/metropolitan-district-council/wolverhampton","705274","M.K.G. (Food Products) Limited","30739","-179.43","Provisions (Resale)","130172817","14/06/2017","Visitor Economy","Art Gallery Tea Room","R4102"
"Wolverhampton City Council","http://opendatacommunities.org/id/metropolitan-district-council/wolverhampton","705274","M.K.G. (Food Products) Limited","30739","6.52","Provisions (Resale)","130172817","14/06/2017","Visitor Economy","Art Gallery Tea Room","R4102"
"Wolverhampton City Council","http://opendatacommunities.org/id/metropolitan-district-council/wolverhampton","705274","M.K.G. (Food Products) Limited","30739","172.91","Provisions (Resale)","130172817","14/06/2017","Visitor Economy","Art Gallery Tea Room","R4102"
"Wolverhampton City Council","http://opendatacommunities.org/id/metropolitan-district-council/wolverhampton","705274","M.K.G. (Food Products) Limited","29031","118.34","Provisions (Resale)","130171805","02/06/2017","Visitor Economy","Bantock - Tea Rooms","R4102"
"Wolverhampton City Council","http://opendatacommunities.org/id/metropolitan-district-council/wolverhampton","705274","M.K.G. (Food Products) Limited","29031","-118.34","Provisions (Resale)","130171805","02/06/2017","Visitor Economy","Bantock - Tea Rooms","R4102"
"Wolverhampton City Council","http://opendatacommunities.org/id/metropolitan-district-council/wolverhampton","705274","M.K.G. (Food Products) Limited","29031","9.77","Provisions (Resale)","130171805","02/06/2017","Visitor Economy","Bantock - Tea Rooms","R4102"
"Wolverhampton City Council","http://opendatacommunities.org/id/metropolitan-district-council/wolverhampton","705274","M.K.G. (Food Products) Limited","29031","108.57","Provisions (Resale)","130171805","02/06/2017","Visitor Economy","Bantock - Tea Rooms","R4102"
"Wolverhampton City Council","http://opendatacommunities.org/id/metropolitan-district-council/wolverhampton","705274","M.K.G. (Food Products) Limited","29032","126.97","Provisions (Resale)","130171806","02/06/2017","Visitor Economy","Art Gallery Tea Room","R4102"
"Wolverhampton City Council","http://opendatacommunities.org/id/metropolitan-district-council/wolverhampton","705274","M.K.G. (Food Products) Limited","29032","-126.97","Provisions (Resale)","130171806","02/06/2017","Visitor Economy","Art Gallery Tea Room","R4102"
"Wolverhampton City Council","http://opendatacommunities.org/id/metropolitan-district-council/wolverhampton","705274","M.K.G. (Food Products) Limited","29032","126.97","Provisions (Resale)","130171806","02/06/2017","Visitor Economy","Art Gallery Tea Room","R4102"
"Wolverhampton City Council","http://opendatacommunities.org/id/metropolitan-district-council/wolverhampton","705274","M.K.G. (Food Products) Limited","29478","115.6","Provisions (Resale)","130171808","02/06/2017","Visitor Economy","Art Gallery Tea Room","R4102"
"Wolverhampton City Council","http://opendatacommunities.org/id/metropolitan-district-council/wolverhampton","705274","M.K.G. (Food Products) Limited","29478","-115.6","Provisions (Resale)","130171808","02/06/2017","Visitor Economy","Art Gallery Tea Room","R4102"
"Wolverhampton City Council","http://opendatacommunities.org/id/metropolitan-district-council/wolverhampton","705274","M.K.G. (Food Products) Limited","29478","15.6","Provisions (Resale)","130171808","02/06/2017","Visitor Economy","Art Gallery Tea Room","R4102"
"Wolverhampton City Council","http://opendatacommunities.org/id/metropolitan-district-council/wolverhampton","705274","M.K.G. (Food Products) Limited","29478","100","Provisions (Resale)","130171808","02/06/2017","Visitor Economy","Art Gallery Tea Room","R4102"
"Wolverhampton City Council","http://opendatacommunities.org/id/metropolitan-district-council/wolverhampton","705274","M.K.G. (Food Products) Limited","28584","256.15","Provisions (Resale)","130171804","02/06/2017","Visitor Economy","Bantock - Tea Rooms","R4102"
"Wolverhampton City Council","http://opendatacommunities.org/id/metropolitan-district-council/wolverhampton","705274","M.K.G. (Food Products) Limited","28584","-256.15","Provisions (Resale)","130171804","02/06/2017","Visitor Economy","Bantock - Tea Rooms","R4102"
"Wolverhampton City Council","http://opendatacommunities.org/id/metropolitan-district-council/wolverhampton","705274","M.K.G. (Food Products) Limited","28584","33.81","Provisions (Resale)","130171804","02/06/2017","Visitor Economy","Bantock - Tea Rooms","R4102"
"Wolverhampton City Council","http://opendatacommunities.org/id/metropolitan-district-council/wolverhampton","705274","M.K.G. (Food Products) Limited","28584","222.34","Provisions (Resale)","130171804","02/06/2017","Visitor Economy","Bantock - Tea Rooms","R4102"
"Wolverhampton City Council","http://opendatacommunities.org/id/metropolitan-district-council/wolverhampton","705274","M.K.G. (Food Products) Limited","29860","584.68","Provisions (Resale)","130172814","09/06/2017","Visitor Economy","Bantock - Tea Rooms","R4102"
"Wolverhampton City Council","http://opendatacommunities.org/id/metropolitan-district-council/wolverhampton","705274","M.K.G. (Food Products) Limited","29860","-584.68","Provisions (Resale)","130172814","09/06/2017","Visitor Economy","Bantock - Tea Rooms","R4102"
"Wolverhampton City Council","http://opendatacommunities.org/id/metropolitan-district-council/wolverhampton","705274","M.K.G. (Food Products) Limited","29860","175.14","Provisions (Resale)","130172814","09/06/2017","Visitor Economy","Bantock - Tea Rooms","R4102"
"Wolverhampton City Council","http://opendatacommunities.org/id/metropolitan-district-council/wolverhampton","705274","M.K.G. (Food Products) Limited","29860","409.54","Provisions (Resale)","130172814","09/06/2017","Visitor Economy","Bantock - Tea Rooms","R4102"
"Wolverhampton City Council","http://opendatacommunities.org/id/metropolitan-district-council/wolverhampton","705274","M.K.G. (Food Products) Limited","29477","391.49","Provisions (Resale)","130171807","02/06/2017","Visitor Economy","Bantock - Tea Rooms","R4102"
"Wolverhampton City Council","http://opendatacommunities.org/id/metropolitan-district-council/wolverhampton","705274","M.K.G. (Food Products) Limited","29477","-391.49","Provisions (Resale)","130171807","02/06/2017","Visitor Economy","Bantock - Tea Rooms","R4102"
"Wolverhampton City Council","http://opendatacommunities.org/id/metropolitan-district-council/wolverhampton","705274","M.K.G. (Food Products) Limited","29477","9.77","Provisions (Resale)","130171807","02/06/2017","Visitor Economy","Bantock - Tea Rooms","R4102"
"Wolverhampton City Council","http://opendatacommunities.org/id/metropolitan-district-council/wolverhampton","705274","M.K.G. (Food Products) Limited","29477","381.72","Provisions (Resale)","130171807","02/06/2017","Visitor Economy","Bantock - Tea Rooms","R4102"
"Wolverhampton City Council","http://opendatacommunities.org/id/metropolitan-district-council/wolverhampton","705276","M3 Communications Limited","18771","1,696.80","Marketing \ Non-staff advertising","130173818","07/06/2017","Visitor Economy","Civic Halls Non-Direct Event Management Account","R4317"
"Wolverhampton City Council","http://opendatacommunities.org/id/metropolitan-district-council/wolverhampton","705291","Madeley Academy Trust Limited","P14533420170616","600","Grant Payments to Individuals","190347036","21/06/2017","Looked After Children","LAC Education Team (LACE)","R6402"
"Wolverhampton City Council","http://opendatacommunities.org/id/metropolitan-district-council/wolverhampton","705303","Mail Solutions UK Limited","347404","76.96","Printing","130177087","28/06/2017","ICTS","Document Centre - General","R4300"
"Wolverhampton City Council","http://opendatacommunities.org/id/metropolitan-district-council/wolverhampton","705303","Mail Solutions UK Limited","346505","614.5","Stationery","130175017","14/06/2017","Revenues & Benefits","Revenues","R4308"
"Wolverhampton City Council","http://opendatacommunities.org/id/metropolitan-district-council/wolverhampton","705303","Mail Solutions UK Limited","346145","75.96","Printing","130174029","02/06/2017","ICTS","Document Centre - General","R4300"
"Wolverhampton City Council","http://opendatacommunities.org/id/metropolitan-district-council/wolverhampton","705305","Mailopeners","20239053","480","Equipment - R & M","130177088","28/06/2017","Democratic Services","Electoral Registration","R4003"
"Wolverhampton City Council","http://opendatacommunities.org/id/metropolitan-district-council/wolverhampton","705308","Maintenance Components Limited","110809","5.81","Equipment - Purchase","190346294","16/06/2017","Fleet Services","Fleet Management","R4000"
"Wolverhampton City Council","http://opendatacommunities.org/id/metropolitan-district-council/wolverhampton","705308","Maintenance Components Limited","110809","3.64","Equipment - Purchase","190346294","16/06/2017","Fleet Services","Fleet Management","R4000"
"Wolverhampton City Council","http://opendatacommunities.org/id/metropolitan-district-council/wolverhampton","705308","Maintenance Components Limited","110809","5.01","Equipment - Purchase","190346294","16/06/2017","Fleet Services","Fleet Management","R4000"
"Wolverhampton City Council","http://opendatacommunities.org/id/metropolitan-district-council/wolverhampton","705308","Maintenance Components Limited","110809","6.41","Equipment - Purchase","190346294","16/06/2017","Fleet Services","Fleet Management","R4000"
"Wolverhampton City Council","http://opendatacommunities.org/id/metropolitan-district-council/wolverhampton","705308","Maintenance Components Limited","110809","7.82","Equipment - Purchase","190346294","16/06/2017","Fleet Services","Fleet Management","R4000"
"Wolverhampton City Council","http://opendatacommunities.org/id/metropolitan-district-council/wolverhampton","705347","Mark Education Limited","2238736","61.65","Agency Staff","130175911","21/06/2017","Early Intervention","EIP Locality 3 - Graiseley","R1100"
"Wolverhampton City Council","http://opendatacommunities.org/id/metropolitan-district-council/wolverhampton","705347","Mark Education Limited","2239154","123.3","Agency Staff","130175460","21/06/2017","Early Intervention","EIP Locality 3 - Graiseley","R1100"
"Wolverhampton City Council","http://opendatacommunities.org/id/metropolitan-district-council/wolverhampton","705347","Mark Education Limited","2239620","41.1","Agency Staff","130174657","21/06/2017","Early Intervention","EIP Locality 3 - Graiseley","R1100"
"Wolverhampton City Council","http://opendatacommunities.org/id/metropolitan-district-council/wolverhampton","705347","Mark Education Limited","2239615","123.3","Agency Staff","130173306","21/06/2017","Early Intervention","EIP Locality 3 - Graiseley","R1100"
"Wolverhampton City Council","http://opendatacommunities.org/id/metropolitan-district-council/wolverhampton","705347","Mark Education Limited","2230787","5,238.40","Services - Professional Fees","130174939","09/06/2017","Schools","Oxley Primary School","R4400"
"Wolverhampton City Council","http://opendatacommunities.org/id/metropolitan-district-council/wolverhampton","705347","Mark Education Limited","2240053","126.73","Agency Staff","130174240","28/06/2017","Early Intervention","EIP Locality 3 - Graiseley","R1100"
"Wolverhampton City Council","http://opendatacommunities.org/id/metropolitan-district-council/wolverhampton","705347","Mark Education Limited","2240058","27.4","Agency Staff","130174242","28/06/2017","Child Protection","CIN/CP S17  SW Unit - Area 3","R1100"
"Wolverhampton City Council","http://opendatacommunities.org/id/metropolitan-district-council/wolverhampton","705347","Mark Education Limited","2240057","41.1","Agency Staff","130174241","28/06/2017","Early Intervention","EIP Locality 3 - Graiseley","R1100"
"Wolverhampton City Council","http://opendatacommunities.org/id/metropolitan-district-council/wolverhampton","705347","Mark Education Limited","2240056","41.1","Agency Staff","130174467","28/06/2017","Early Intervention","EIP Locality 3 - Graiseley","R1100"
"Wolverhampton City Council","http://opendatacommunities.org/id/metropolitan-district-council/wolverhampton","705347","Mark Education Limited","2238738","27.4","Agency Staff","130171159","02/06/2017","Child Protection","CIN/CP S17  SW Unit - Area 3","R1100"
"Wolverhampton City Council","http://opendatacommunities.org/id/metropolitan-district-council/wolverhampton","705347","Mark Education Limited","2237816","114.3","Agency Staff","130175908","16/06/2017","Early Intervention","EIP Locality 3 - Graiseley","R1100"
"Wolverhampton City Council","http://opendatacommunities.org/id/metropolitan-district-council/wolverhampton","705347","Mark Education Limited","2239158","41.1","Agency Staff","130172336","14/06/2017","Early Intervention","EIP Locality 3 - Graiseley","R1100"
"Wolverhampton City Council","http://opendatacommunities.org/id/metropolitan-district-council/wolverhampton","705347","Mark Education Limited","2239157","41.1","Agency Staff","130172819","14/06/2017","Early Intervention","EIP Locality 3 - Graiseley","R1100"
"Wolverhampton City Council","http://opendatacommunities.org/id/metropolitan-district-council/wolverhampton","705347","Mark Education Limited","2239618","27.4","Agency Staff","130173307","21/06/2017","Child Protection","CIN/CP S17  SW Unit - Area 3","R1100"
"Wolverhampton City Council","http://opendatacommunities.org/id/metropolitan-district-council/wolverhampton","705347","Mark Education Limited","2237927","27.4","Agency Staff","130175910","21/06/2017","Child Protection","CIN/CP S17  SW Unit - Area 3","R1100"
"Wolverhampton City Council","http://opendatacommunities.org/id/metropolitan-district-council/wolverhampton","705347","Mark Education Limited","2237927","-27.4","Agency Staff","130175910","21/06/2017","Child Protection","CIN/CP S17  SW Unit - Area 3","R1100"
"Wolverhampton City Council","http://opendatacommunities.org/id/metropolitan-district-council/wolverhampton","705347","Mark Education Limited","2237927","25.4","Agency Staff","130175910","21/06/2017","Child Protection","CIN/CP S17  SW Unit - Area 3","R1100"
"Wolverhampton City Council","http://opendatacommunities.org/id/metropolitan-district-council/wolverhampton","705347","Mark Education Limited","2237859","27.4","Agency Staff","130175909","21/06/2017","Child Protection","CIN/CP S17  SW Unit - Area 3","R1100"
"Wolverhampton City Council","http://opendatacommunities.org/id/metropolitan-district-council/wolverhampton","705347","Mark Education Limited","2237859","-27.4","Agency Staff","130175909","21/06/2017","Child Protection","CIN/CP S17  SW Unit - Area 3","R1100"
"Wolverhampton City Council","http://opendatacommunities.org/id/metropolitan-district-council/wolverhampton","705347","Mark Education Limited","2237859","25.4","Agency Staff","130175909","21/06/2017","Child Protection","CIN/CP S17  SW Unit - Area 3","R1100"
"Wolverhampton City Council","http://opendatacommunities.org/id/metropolitan-district-council/wolverhampton","705347","Mark Education Limited","2239619","41.1","Agency Staff","130173308","21/06/2017","Early Intervention","EIP Locality 3 - Graiseley","R1100"
"Wolverhampton City Council","http://opendatacommunities.org/id/metropolitan-district-council/wolverhampton","705360","Mars Drinks UK Limited","93516951","778.08","Services - Supplies and Services to service users","130172820","28/06/2017","Learning Disability Provider","City Links","R4408"
"Wolverhampton City Council","http://opendatacommunities.org/id/metropolitan-district-council/wolverhampton","705360","Mars Drinks UK Limited","93516951","846.61","Services - Supplies and Services to service users","130172820","28/06/2017","Learning Disability Provider","City Links","R4408"
"Wolverhampton City Council","http://opendatacommunities.org/id/metropolitan-district-council/wolverhampton","705360","Mars Drinks UK Limited","93516951","-846.61","Services - Supplies and Services to service users","130172820","28/06/2017","Learning Disability Provider","City Links","R4408"
"Wolverhampton City Council","http://opendatacommunities.org/id/metropolitan-district-council/wolverhampton","705363","Marshall Fleet Solutions","11362616","25.68","Equipment - Purchase","190343232","07/06/2017","Fleet Services","Fleet Management","R4000"
"Wolverhampton City Council","http://opendatacommunities.org/id/metropolitan-district-council/wolverhampton","705363","Marshall Fleet Solutions","11362616","6.48","Equipment - Purchase","190343232","07/06/2017","Fleet Services","Fleet Management","R4000"
"Wolverhampton City Council","http://opendatacommunities.org/id/metropolitan-district-council/wolverhampton","705363","Marshall Fleet Solutions","11362616","7.15","Equipment - Purchase","190343232","07/06/2017","Fleet Services","Fleet Management","R4000"
"Wolverhampton City Council","http://opendatacommunities.org/id/metropolitan-district-council/wolverhampton","705363","Marshall Fleet Solutions","11362616","15.39","Equipment - Purchase","190343232","07/06/2017","Fleet Services","Fleet Management","R4000"
"Wolverhampton City Council","http://opendatacommunities.org/id/metropolitan-district-council/wolverhampton","705363","Marshall Fleet Solutions","11362619","49.66","Equipment - Purchase","190343233","07/06/2017","Fleet Services","Fleet Management","R4000"
"Wolverhampton City Council","http://opendatacommunities.org/id/metropolitan-district-council/wolverhampton","705363","Marshall Fleet Solutions","11362619","40.33","Equipment - Purchase","190343233","07/06/2017","Fleet Services","Fleet Management","R4000"
"Wolverhampton City Council","http://opendatacommunities.org/id/metropolitan-district-council/wolverhampton","705363","Marshall Fleet Solutions","11362619","12.69","Equipment - Purchase","190343233","07/06/2017","Fleet Services","Fleet Management","R4000"
"Wolverhampton City Council","http://opendatacommunities.org/id/metropolitan-district-council/wolverhampton","705367","Marstons PLC","97269127","614.76","Provisions (Resale)","130173515","21/06/2017","Visitor Economy","The Little Civic","R4102"
"Wolverhampton City Council","http://opendatacommunities.org/id/metropolitan-district-council/wolverhampton","705367","Marstons PLC","97247243","1,502.70","Provisions (Resale)","130171586","02/06/2017","Visitor Economy","The Little Civic","R4102"
"Wolverhampton City Council","http://opendatacommunities.org/id/metropolitan-district-council/wolverhampton","705381","Martyn Billings Automotive","20976","0.9","Services - Professional Fees","190343249","07/06/2017","Fleet Services","Fleet Management","R4400"
"Wolverhampton City Council","http://opendatacommunities.org/id/metropolitan-district-council/wolverhampton","705381","Martyn Billings Automotive","20989","48.69","Services - Professional Fees","190343252","07/06/2017","Fleet Services","Fleet Management","R4400"
"Wolverhampton City Council","http://opendatacommunities.org/id/metropolitan-district-council/wolverhampton","705381","Martyn Billings Automotive","20989","100.3","Services - Professional Fees","190343252","07/06/2017","Fleet Services","Fleet Management","R4400"
"Wolverhampton City Council","http://opendatacommunities.org/id/metropolitan-district-council/wolverhampton","705381","Martyn Billings Automotive","20976","6.2","Services - Professional Fees","190343249","07/06/2017","Fleet Services","Fleet Management","R4400"
"Wolverhampton City Council","http://opendatacommunities.org/id/metropolitan-district-council/wolverhampton","705381","Martyn Billings Automotive","20976","4.97","Services - Professional Fees","190343249","07/06/2017","Fleet Services","Fleet Management","R4400"
"Wolverhampton City Council","http://opendatacommunities.org/id/metropolitan-district-council/wolverhampton","705381","Martyn Billings Automotive","20976","13.75","Services - Professional Fees","190343249","07/06/2017","Fleet Services","Fleet Management","R4400"
"Wolverhampton City Council","http://opendatacommunities.org/id/metropolitan-district-council/wolverhampton","705381","Martyn Billings Automotive","20984","35","Services - Professional Fees","190343251","07/06/2017","Fleet Services","Fleet Management","R4400"
"Wolverhampton City Council","http://opendatacommunities.org/id/metropolitan-district-council/wolverhampton","705381","Martyn Billings Automotive","20989","150.5","Services - Professional Fees","190343252","07/06/2017","Fleet Services","Fleet Management","R4400"
"Wolverhampton City Council","http://opendatacommunities.org/id/metropolitan-district-council/wolverhampton","705381","Martyn Billings Automotive","20989","3.5","Services - Professional Fees","190343252","07/06/2017","Fleet Services","Fleet Management","R4400"
"Wolverhampton City Council","http://opendatacommunities.org/id/metropolitan-district-council/wolverhampton","705381","Martyn Billings Automotive","20975","40","Services - Professional Fees","190343248","07/06/2017","Fleet Services","Fleet Management","R4400"
"Wolverhampton City Council","http://opendatacommunities.org/id/metropolitan-district-council/wolverhampton","705381","Martyn Billings Automotive","20975","6.06","Services - Professional Fees","190343248","07/06/2017","Fleet Services","Fleet Management","R4400"
"Wolverhampton City Council","http://opendatacommunities.org/id/metropolitan-district-council/wolverhampton","705381","Martyn Billings Automotive","20976","45","Services - Professional Fees","190343249","07/06/2017","Fleet Services","Fleet Management","R4400"
"Wolverhampton City Council","http://opendatacommunities.org/id/metropolitan-district-council/wolverhampton","705381","Martyn Billings Automotive","20976","9","Services - Professional Fees","190343249","07/06/2017","Fleet Services","Fleet Management","R4400"
"Wolverhampton City Council","http://opendatacommunities.org/id/metropolitan-district-council/wolverhampton","705381","Martyn Billings Automotive","20975","20.76","Services - Professional Fees","190343248","07/06/2017","Fleet Services","Fleet Management","R4400"
"Wolverhampton City Council","http://opendatacommunities.org/id/metropolitan-district-council/wolverhampton","705381","Martyn Billings Automotive","20975","5.85","Services - Professional Fees","190343248","07/06/2017","Fleet Services","Fleet Management","R4400"
"Wolverhampton City Council","http://opendatacommunities.org/id/metropolitan-district-council/wolverhampton","705381","Martyn Billings Automotive","20975","70","Services - Professional Fees","190343248","07/06/2017","Fleet Services","Fleet Management","R4400"
"Wolverhampton City Council","http://opendatacommunities.org/id/metropolitan-district-council/wolverhampton","705381","Martyn Billings Automotive","20982","35","Services - Professional Fees","190343250","07/06/2017","Fleet Services","Fleet Management","R4400"
"Wolverhampton City Council","http://opendatacommunities.org/id/metropolitan-district-council/wolverhampton","705381","Martyn Billings Automotive","20982","38.81","Services - Professional Fees","190343250","07/06/2017","Fleet Services","Fleet Management","R4400"
"Wolverhampton City Council","http://opendatacommunities.org/id/metropolitan-district-council/wolverhampton","705381","Martyn Billings Automotive","20976","70","Services - Professional Fees","190343249","07/06/2017","Fleet Services","Fleet Management","R4400"
"Wolverhampton City Council","http://opendatacommunities.org/id/metropolitan-district-council/wolverhampton","705381","Martyn Billings Automotive","20999","4.83","Services - Professional Fees","190345779","14/06/2017","Fleet Services","Fleet Management","R4400"
"Wolverhampton City Council","http://opendatacommunities.org/id/metropolitan-district-council/wolverhampton","705381","Martyn Billings Automotive","20999","11.4","Services - Professional Fees","190345779","14/06/2017","Fleet Services","Fleet Management","R4400"
"Wolverhampton City Council","http://opendatacommunities.org/id/metropolitan-district-council/wolverhampton","705381","Martyn Billings Automotive","20999","52.5","Services - Professional Fees","190345779","14/06/2017","Fleet Services","Fleet Management","R4400"
"Wolverhampton City Council","http://opendatacommunities.org/id/metropolitan-district-council/wolverhampton","705381","Martyn Billings Automotive","20999","4.24","Services - Professional Fees","190345779","14/06/2017","Fleet Services","Fleet Management","R4400"
"Wolverhampton City Council","http://opendatacommunities.org/id/metropolitan-district-council/wolverhampton","705381","Martyn Billings Automotive","20999","0.9","Services - Professional Fees","190345779","14/06/2017","Fleet Services","Fleet Management","R4400"
"Wolverhampton City Council","http://opendatacommunities.org/id/metropolitan-district-council/wolverhampton","705381","Martyn Billings Automotive","20999","45","Services - Professional Fees","190345779","14/06/2017","Fleet Services","Fleet Management","R4400"
"Wolverhampton City Council","http://opendatacommunities.org/id/metropolitan-district-council/wolverhampton","705381","Martyn Billings Automotive","20999","9","Services - Professional Fees","190345779","14/06/2017","Fleet Services","Fleet Management","R4400"
"Wolverhampton City Council","http://opendatacommunities.org/id/metropolitan-district-council/wolverhampton","705381","Martyn Billings Automotive","20991","295.45","Services - Professional Fees","190345778","14/06/2017","Fleet Services","Fleet Management","R4400"
"Wolverhampton City Council","http://opendatacommunities.org/id/metropolitan-district-council/wolverhampton","705381","Martyn Billings Automotive","21026","52.5","Services - Professional Fees","190350519","28/06/2017","Fleet Services","Fleet Management","R4400"
"Wolverhampton City Council","http://opendatacommunities.org/id/metropolitan-district-council/wolverhampton","705381","Martyn Billings Automotive","21026","5.2","Services - Professional Fees","190350519","28/06/2017","Fleet Services","Fleet Management","R4400"
"Wolverhampton City Council","http://opendatacommunities.org/id/metropolitan-district-council/wolverhampton","705381","Martyn Billings Automotive","21026","18.45","Services - Professional Fees","190350519","28/06/2017","Fleet Services","Fleet Management","R4400"
"Wolverhampton City Council","http://opendatacommunities.org/id/metropolitan-district-council/wolverhampton","705381","Martyn Billings Automotive","21026","5.39","Services - Professional Fees","190350519","28/06/2017","Fleet Services","Fleet Management","R4400"
"Wolverhampton City Council","http://opendatacommunities.org/id/metropolitan-district-council/wolverhampton","705381","Martyn Billings Automotive","21026","40","Services - Professional Fees","190350519","28/06/2017","Fleet Services","Fleet Management","R4400"
"Wolverhampton City Council","http://opendatacommunities.org/id/metropolitan-district-council/wolverhampton","705381","Martyn Billings Automotive","21029","101.68","Services - Professional Fees","190350520","28/06/2017","Fleet Services","Fleet Management","R4400"
"Wolverhampton City Council","http://opendatacommunities.org/id/metropolitan-district-council/wolverhampton","705381","Martyn Billings Automotive","21029","47.26","Services - Professional Fees","190350520","28/06/2017","Fleet Services","Fleet Management","R4400"
"Wolverhampton City Council","http://opendatacommunities.org/id/metropolitan-district-council/wolverhampton","705381","Martyn Billings Automotive","21029","122.5","Services - Professional Fees","190350520","28/06/2017","Fleet Services","Fleet Management","R4400"
"Wolverhampton City Council","http://opendatacommunities.org/id/metropolitan-district-council/wolverhampton","705392","Matthew Clark Wholesale Limited","59790988","331.98","Provisions (Resale)","130172211","14/06/2017","Visitor Economy","The Little Civic","R4102"
"Wolverhampton City Council","http://opendatacommunities.org/id/metropolitan-district-council/wolverhampton","705392","Matthew Clark Wholesale Limited","59770631 RI","442.75","Provisions (Resale)","130171160","02/06/2017","Visitor Economy","The Little Civic","R4102"
"Wolverhampton City Council","http://opendatacommunities.org/id/metropolitan-district-council/wolverhampton","705395","Maudesport Limited","SIN227696","28.9","Materials for resale","130169160","02/06/2017","Leisure Services","Aldersley Leisure Village","R4008"
"Wolverhampton City Council","http://opendatacommunities.org/id/metropolitan-district-council/wolverhampton","705453","Mercian Shutters Limited","40253","233.75","R&M - Departmental planned (external)","130174658","09/06/2017","Maintenance Programme","Centralised R&M","R2001"
"Wolverhampton City Council","http://opendatacommunities.org/id/metropolitan-district-council/wolverhampton","705453","Mercian Shutters Limited","40280","300","R&M - Departmental planned (external)","130176989","30/06/2017","Markets","Wolverhampton Indoor and Open Market","R2001"
"Wolverhampton City Council","http://opendatacommunities.org/id/metropolitan-district-council/wolverhampton","705453","Mercian Shutters Limited","40227","135","R&M - Departmental planned (external)","130173165","23/06/2017","Maintenance Programme","Centralised R&M","R2001"
"Wolverhampton City Council","http://opendatacommunities.org/id/metropolitan-district-council/wolverhampton","705471","Metro Rod Limited","711657","1,745.00","External Professional Fees","130175018","28/06/2017","-","South Side","C6002"
"Wolverhampton City Council","http://opendatacommunities.org/id/metropolitan-district-council/wolverhampton","705486","Michael Page Int Recruitment Limited","6154364","850","Agency Staff","130170475","02/06/2017","Strategic Finance","Strategic Finance","R1100"
"Wolverhampton City Council","http://opendatacommunities.org/id/metropolitan-district-council/wolverhampton","705486","Michael Page Int Recruitment Limited","6160510","925","Agency Staff","130172606","16/06/2017","Strategic Finance","Strategic Finance","R1100"
"Wolverhampton City Council","http://opendatacommunities.org/id/metropolitan-district-council/wolverhampton","705486","Michael Page Int Recruitment Limited","6162728","1,181.25","Agency Staff","130173309","21/06/2017","Strategic Finance","Strategic Finance","R1100"
"Wolverhampton City Council","http://opendatacommunities.org/id/metropolitan-district-council/wolverhampton","705486","Michael Page Int Recruitment Limited","6159434","862.5","Agency Staff","130172337","14/06/2017","Strategic Finance","Strategic Finance","R1100"
"Wolverhampton City Council","http://opendatacommunities.org/id/metropolitan-district-council/wolverhampton","705486","Michael Page Int Recruitment Limited","6158744","4,100.00","Agency Staff","130172037","14/06/2017","Strategic Finance","Strategic Finance","R1100"
"Wolverhampton City Council","http://opendatacommunities.org/id/metropolitan-district-council/wolverhampton","705486","Michael Page Int Recruitment Limited","6164597","925","Agency Staff","130173819","28/06/2017","Strategic Finance","Strategic Finance","R1100"
"Wolverhampton City Council","http://opendatacommunities.org/id/metropolitan-district-council/wolverhampton","705486","Michael Page Int Recruitment Limited","6167162","943.75","Agency Staff","130174243","28/06/2017","Strategic Finance","Strategic Finance","R1100"
"Wolverhampton City Council","http://opendatacommunities.org/id/metropolitan-district-council/wolverhampton","705486","Michael Page Int Recruitment Limited","6158215","1,100.00","Agency Staff","130171811","14/06/2017","Strategic Finance","Strategic Finance","R1100"
"Wolverhampton City Council","http://opendatacommunities.org/id/metropolitan-district-council/wolverhampton","705496","Midcounties Co-Operative Funeralcare","081/70065032","1,351.00","Services - Professional Fees","130173613","21/06/2017","Safeguarding","Court of Protection, Funerals and Protection of Property","R4400"
"Wolverhampton City Council","http://opendatacommunities.org/id/metropolitan-district-council/wolverhampton","705496","Midcounties Co-Operative Funeralcare","080/70065355","1,187.00","Services - Professional Fees","130174659","28/06/2017","Safeguarding","Court of Protection, Funerals and Protection of Property","R4400"
"Wolverhampton City Council","http://opendatacommunities.org/id/metropolitan-district-council/wolverhampton","705496","Midcounties Co-Operative Funeralcare","081/70064845","1,187.00","Services - Professional Fees","130173820","21/06/2017","Safeguarding","Court of Protection, Funerals and Protection of Property","R4400"
"Wolverhampton City Council","http://opendatacommunities.org/id/metropolitan-district-council/wolverhampton","705496","Midcounties Co-Operative Funeralcare","081/70064227","1,187.00","Services - Professional Fees","130174244","07/06/2017","Safeguarding","Court of Protection, Funerals and Protection of Property","R4400"
"Wolverhampton City Council","http://opendatacommunities.org/id/metropolitan-district-council/wolverhampton","705519","Midland Motascreens Limited","15913","350","Insurance - General","130175672","14/06/2017","Fleet Services","Passenger Transport - General","R4962"
"Wolverhampton City Council","http://opendatacommunities.org/id/metropolitan-district-council/wolverhampton","705519","Midland Motascreens Limited","16038","375","Services - Professional Fees","190345776","14/06/2017","Fleet Services","Fleet Management","R4400"
"Wolverhampton City Council","http://opendatacommunities.org/id/metropolitan-district-council/wolverhampton","705519","Midland Motascreens Limited","16039","120","Services - Professional Fees","190345777","14/06/2017","Fleet Services","Fleet Management","R4400"
"Wolverhampton City Council","http://opendatacommunities.org/id/metropolitan-district-council/wolverhampton","705519","Midland Motascreens Limited","16033","175","Services - Professional Fees","190345775","14/06/2017","Fleet Services","Fleet Management","R4400"
"Wolverhampton City Council","http://opendatacommunities.org/id/metropolitan-district-council/wolverhampton","705519","Midland Motascreens Limited","16032","50","Insurance - General","130176435","28/06/2017","Environmental Maintenance","Ground Maintenance West","R4962"
"Wolverhampton City Council","http://opendatacommunities.org/id/metropolitan-district-council/wolverhampton","705519","Midland Motascreens Limited","16032","175","Insurance - General","130176435","28/06/2017","Audit Services","Motor Vehicles","R4962"
"Wolverhampton City Council","http://opendatacommunities.org/id/metropolitan-district-council/wolverhampton","705520","Midland News Association Limited","I7335652","371.02","Marketing \ Non-staff advertising","130173067","16/06/2017","Planning","Planning","R4317"
"Wolverhampton City Council","http://opendatacommunities.org/id/metropolitan-district-council/wolverhampton","705520","Midland News Association Limited","I7335345","544.16","Construction and Conversion","130173068","14/06/2017","-","Integrated Transport","C1100"
"Wolverhampton City Council","http://opendatacommunities.org/id/metropolitan-district-council/wolverhampton","705520","Midland News Association Limited","I7340203","2,374.56","Marketing \ Non-staff advertising","130174469","28/06/2017","Operation & Maintenance of Existing Network","UTC - Utilities Organisations","R4317"
"Wolverhampton City Council","http://opendatacommunities.org/id/metropolitan-district-council/wolverhampton","705520","Midland News Association Limited","I7339973","445.22","Marketing \ Non-staff advertising","130174468","28/06/2017","Operation & Maintenance of Existing Network","UTC - Utilities Organisations","R4317"
"Wolverhampton City Council","http://opendatacommunities.org/id/metropolitan-district-council/wolverhampton","705520","Midland News Association Limited","I7338025","593.64","Construction and Conversion","130174245","21/06/2017","-","Safety Programme","C1100"
"Wolverhampton City Council","http://opendatacommunities.org/id/metropolitan-district-council/wolverhampton","705520","Midland News Association Limited","I7286975","367.5","Marketing \ Non-staff advertising","130172527","02/06/2017","Corporate Communications","Communications & Marketing - General","R4317"
"Wolverhampton City Council","http://opendatacommunities.org/id/metropolitan-district-council/wolverhampton","705520","Midland News Association Limited","I7342327","445.22","Marketing \ Non-staff advertising","130174851","28/06/2017","Operation & Maintenance of Existing Network","UTC - Utilities Organisations","R4317"
"Wolverhampton City Council","http://opendatacommunities.org/id/metropolitan-district-council/wolverhampton","705520","Midland News Association Limited","I7332331","593.64","Marketing \ Non-staff advertising","130175918","21/06/2017","Operation & Maintenance of Existing Network","Public Rights of Way (CROW Act 2000)","R4317"
"Wolverhampton City Council","http://opendatacommunities.org/id/metropolitan-district-council/wolverhampton","705520","Midland News Association Limited","I7339954","445.22","Marketing \ Non-staff advertising","130174039","28/06/2017","Operation & Maintenance of Existing Network","UTC only � External Rechargeable Works","R4317"
"Wolverhampton City Council","http://opendatacommunities.org/id/metropolitan-district-council/wolverhampton","705520","Midland News Association Limited","I7339806","445.22","Marketing \ Non-staff advertising","130173821","28/06/2017","Operation & Maintenance of Existing Network","UTC only � External Rechargeable Works","R4317"
"Wolverhampton City Council","http://opendatacommunities.org/id/metropolitan-district-council/wolverhampton","705520","Midland News Association Limited","I7338043","1,113.08","Construction and Conversion","130174037","21/06/2017","-","Wolverhampton Interchange","C1100"
"Wolverhampton City Council","http://opendatacommunities.org/id/metropolitan-district-council/wolverhampton","705520","Midland News Association Limited","I7336834","445.22","Marketing \ Non-staff advertising","130173620","21/06/2017","Operation & Maintenance of Existing Network","UTC - Utilities Organisations","R4317"
"Wolverhampton City Council","http://opendatacommunities.org/id/metropolitan-district-council/wolverhampton","705520","Midland News Association Limited","I7336835","445.22","Marketing \ Non-staff advertising","130173621","21/06/2017","Operation & Maintenance of Existing Network","UTC - Utilities Organisations","R4317"
"Wolverhampton City Council","http://opendatacommunities.org/id/metropolitan-district-council/wolverhampton","705520","Midland News Association Limited","I7337256","494.7","Construction and Conversion","130174035","21/06/2017","-","Safety Programme","C1100"
"Wolverhampton City Council","http://opendatacommunities.org/id/metropolitan-district-council/wolverhampton","705520","Midland News Association Limited","I7337255","494.7","Marketing \ Non-staff advertising","130174034","21/06/2017","Transportation","Section 278 and 38 Agreements","R4317"
"Wolverhampton City Council","http://opendatacommunities.org/id/metropolitan-district-council/wolverhampton","705520","Midland News Association Limited","I7337257","494.7","Construction and Conversion","130174036","21/06/2017","-","Safety Programme","C1100"
"Wolverhampton City Council","http://opendatacommunities.org/id/metropolitan-district-council/wolverhampton","705520","Midland News Association Limited","I7336191","794.32","Staff Advertising Costs","130173310","21/06/2017","The Hub","Central Advertising","R1700"
"Wolverhampton City Council","http://opendatacommunities.org/id/metropolitan-district-council/wolverhampton","705520","Midland News Association Limited","I7339039","272.08","Marketing \ Non-staff advertising","130174038","21/06/2017","Planning","Planning","R4317"
"Wolverhampton City Council","http://opendatacommunities.org/id/metropolitan-district-council/wolverhampton","705520","Midland News Association Limited","I7342326","445.22","Marketing \ Non-staff advertising","130174850","28/06/2017","Operation & Maintenance of Existing Network","UTC - Utilities Organisations","R4317"
"Wolverhampton City Council","http://opendatacommunities.org/id/metropolitan-district-council/wolverhampton","705520","Midland News Association Limited","I7341336","1,632.50","Construction and Conversion","130175019","28/06/2017","-","Safety Programme","C1100"
"Wolverhampton City Council","http://opendatacommunities.org/id/metropolitan-district-council/wolverhampton","705520","Midland News Association Limited","I7333516","544.16","Staff Advertising Costs","130172038","14/06/2017","Operation & Maintenance of Existing Network","UTC - Utilities Organisations","R1700"
"Wolverhampton City Council","http://opendatacommunities.org/id/metropolitan-district-council/wolverhampton","705520","Midland News Association Limited","I7332995","148.4","Marketing \ Non-staff advertising","130171591","07/06/2017","Planning","Planning","R4317"
"Wolverhampton City Council","http://opendatacommunities.org/id/metropolitan-district-council/wolverhampton","705525","Midland Quarry Products Limited","1980449957","1,702.56","Materials","130174660","28/06/2017","Highways Maintenance","Patching","R4007"
"Wolverhampton City Council","http://opendatacommunities.org/id/metropolitan-district-council/wolverhampton","705525","Midland Quarry Products Limited","1980444371","185.67","Materials","130172341","14/06/2017","Highways Maintenance","Patching","R4007"
"Wolverhampton City Council","http://opendatacommunities.org/id/metropolitan-district-council/wolverhampton","705525","Midland Quarry Products Limited","1980444369","3,387.56","Materials","130172339","14/06/2017","Highways Maintenance","Patching","R4007"
"Wolverhampton City Council","http://opendatacommunities.org/id/metropolitan-district-council/wolverhampton","705525","Midland Quarry Products Limited","1980444370","438.4","Materials","130172340","14/06/2017","Highways Maintenance","Patching","R4007"
"Wolverhampton City Council","http://opendatacommunities.org/id/metropolitan-district-council/wolverhampton","705525","Midland Quarry Products Limited","1980445522","2,428.84","Materials","130172822","14/06/2017","Highways Maintenance","Patching","R4007"
"Wolverhampton City Council","http://opendatacommunities.org/id/metropolitan-district-council/wolverhampton","705525","Midland Quarry Products Limited","1980444368","83.68","Materials","130172338","14/06/2017","Highways Maintenance","Patching","R4007"
"Wolverhampton City Council","http://opendatacommunities.org/id/metropolitan-district-council/wolverhampton","705525","Midland Quarry Products Limited","1980442810","1,504.55","Materials","130171813","07/06/2017","Highways Maintenance","Patching","R4007"
"Wolverhampton City Council","http://opendatacommunities.org/id/metropolitan-district-council/wolverhampton","705525","Midland Quarry Products Limited","1980442809","10.72","Materials","130171812","07/06/2017","Highways Maintenance","Patching","R4007"
"Wolverhampton City Council","http://opendatacommunities.org/id/metropolitan-district-council/wolverhampton","705525","Midland Quarry Products Limited","1980441451","3,664.76","Materials","130171382","02/06/2017","Highways Maintenance","Patching","R4007"
"Wolverhampton City Council","http://opendatacommunities.org/id/metropolitan-district-council/wolverhampton","705525","Midland Quarry Products Limited","1980441452","1,742.49","Materials","130171383","02/06/2017","Highways Maintenance","Patching","R4007"
"Wolverhampton City Council","http://opendatacommunities.org/id/metropolitan-district-council/wolverhampton","705525","Midland Quarry Products Limited","1980448963","2,134.71","Materials","130174041","28/06/2017","Highways Maintenance","Patching","R4007"
"Wolverhampton City Council","http://opendatacommunities.org/id/metropolitan-district-council/wolverhampton","705525","Midland Quarry Products Limited","1980446872","1,191.54","Materials","130173313","21/06/2017","Highways Maintenance","Patching","R4007"
"Wolverhampton City Council","http://opendatacommunities.org/id/metropolitan-district-council/wolverhampton","705525","Midland Quarry Products Limited","1980447995","3,276.28","Materials","130173623","21/06/2017","Highways Maintenance","Patching","R4007"
"Wolverhampton City Council","http://opendatacommunities.org/id/metropolitan-district-council/wolverhampton","705525","Midland Quarry Products Limited","1980446871","2,645.57","Materials","130173312","21/06/2017","Highways Maintenance","Patching","R4007"
"Wolverhampton City Council","http://opendatacommunities.org/id/metropolitan-district-council/wolverhampton","705525","Midland Quarry Products Limited","1980446870","22.4","Materials","130173311","21/06/2017","Highways Maintenance","Patching","R4007"
"Wolverhampton City Council","http://opendatacommunities.org/id/metropolitan-district-council/wolverhampton","705525","Midland Quarry Products Limited","1980448962","11.2","Materials","130174040","28/06/2017","Highways Maintenance","Patching","R4007"
"Wolverhampton City Council","http://opendatacommunities.org/id/metropolitan-district-council/wolverhampton","705534","Midlands Truck & Van Limited","88412900","12.4","Equipment - Purchase","190343280","07/06/2017","Fleet Services","Fleet Management","R4000"
"Wolverhampton City Council","http://opendatacommunities.org/id/metropolitan-district-council/wolverhampton","705534","Midlands Truck & Van Limited","88413192","44.8","Equipment - Purchase","190343285","07/06/2017","Fleet Services","Fleet Management","R4000"
"Wolverhampton City Council","http://opendatacommunities.org/id/metropolitan-district-council/wolverhampton","705534","Midlands Truck & Van Limited","88412748","123","Equipment - Purchase","190343279","07/06/2017","Fleet Services","Fleet Management","R4000"
"Wolverhampton City Council","http://opendatacommunities.org/id/metropolitan-district-council/wolverhampton","705534","Midlands Truck & Van Limited","88412900","19.6","Equipment - Purchase","190343280","07/06/2017","Fleet Services","Fleet Management","R4000"
"Wolverhampton City Council","http://opendatacommunities.org/id/metropolitan-district-council/wolverhampton","705534","Midlands Truck & Van Limited","88412900","34.8","Equipment - Purchase","190343280","07/06/2017","Fleet Services","Fleet Management","R4000"
"Wolverhampton City Council","http://opendatacommunities.org/id/metropolitan-district-council/wolverhampton","705534","Midlands Truck & Van Limited","88412900","6.32","Equipment - Purchase","190343280","07/06/2017","Fleet Services","Fleet Management","R4000"
"Wolverhampton City Council","http://opendatacommunities.org/id/metropolitan-district-council/wolverhampton","705534","Midlands Truck & Van Limited","88412900","2.8","Equipment - Purchase","190343280","07/06/2017","Fleet Services","Fleet Management","R4000"
"Wolverhampton City Council","http://opendatacommunities.org/id/metropolitan-district-council/wolverhampton","705534","Midlands Truck & Van Limited","88412900","4.65","Equipment - Purchase","190343280","07/06/2017","Fleet Services","Fleet Management","R4000"
"Wolverhampton City Council","http://opendatacommunities.org/id/metropolitan-district-council/wolverhampton","705534","Midlands Truck & Van Limited","88413055","124.75","Equipment - Purchase","190343282","07/06/2017","Fleet Services","Fleet Management","R4000"
"Wolverhampton City Council","http://opendatacommunities.org/id/metropolitan-district-council/wolverhampton","705534","Midlands Truck & Van Limited","88413090","75","Equipment - Purchase","190343283","07/06/2017","Fleet Services","Fleet Management","R4000"
"Wolverhampton City Council","http://opendatacommunities.org/id/metropolitan-district-council/wolverhampton","705534","Midlands Truck & Van Limited","88413141","10.2","Equipment - Purchase","190343284","07/06/2017","Fleet Services","Fleet Management","R4000"
"Wolverhampton City Council","http://opendatacommunities.org/id/metropolitan-district-council/wolverhampton","705534","Midlands Truck & Van Limited","88413141","28.39","Equipment - Purchase","190343284","07/06/2017","Fleet Services","Fleet Management","R4000"
"Wolverhampton City Council","http://opendatacommunities.org/id/metropolitan-district-council/wolverhampton","705534","Midlands Truck & Van Limited","88413192","5.9","Equipment - Purchase","190343285","07/06/2017","Fleet Services","Fleet Management","R4000"
"Wolverhampton City Council","http://opendatacommunities.org/id/metropolitan-district-council/wolverhampton","705534","Midlands Truck & Van Limited","88412628","1.4","Equipment - Purchase","190343278","07/06/2017","Fleet Services","Fleet Management","R4000"
"Wolverhampton City Council","http://opendatacommunities.org/id/metropolitan-district-council/wolverhampton","705534","Midlands Truck & Van Limited","88412628","3.16","Equipment - Purchase","190343278","07/06/2017","Fleet Services","Fleet Management","R4000"
"Wolverhampton City Council","http://opendatacommunities.org/id/metropolitan-district-council/wolverhampton","705534","Midlands Truck & Van Limited","88412900","4.65","Equipment - Purchase","190343280","07/06/2017","Fleet Services","Fleet Management","R4000"
"Wolverhampton City Council","http://opendatacommunities.org/id/metropolitan-district-council/wolverhampton","705534","Midlands Truck & Van Limited","88412900","4.5","Equipment - Purchase","190343280","07/06/2017","Fleet Services","Fleet Management","R4000"
"Wolverhampton City Council","http://opendatacommunities.org/id/metropolitan-district-council/wolverhampton","705534","Midlands Truck & Van Limited","88412900","18.4","Equipment - Purchase","190343280","07/06/2017","Fleet Services","Fleet Management","R4000"
"Wolverhampton City Council","http://opendatacommunities.org/id/metropolitan-district-council/wolverhampton","705534","Midlands Truck & Van Limited","88412900","9.3","Equipment - Purchase","190343280","07/06/2017","Fleet Services","Fleet Management","R4000"
"Wolverhampton City Council","http://opendatacommunities.org/id/metropolitan-district-council/wolverhampton","705534","Midlands Truck & Van Limited","88412936","149.8","Equipment - Purchase","190343281","07/06/2017","Fleet Services","Fleet Management","R4000"
"Wolverhampton City Council","http://opendatacommunities.org/id/metropolitan-district-council/wolverhampton","705534","Midlands Truck & Van Limited","88413423","23.9","Equipment - Purchase","190343286","07/06/2017","Fleet Services","Fleet Management","R4000"
"Wolverhampton City Council","http://opendatacommunities.org/id/metropolitan-district-council/wolverhampton","705534","Midlands Truck & Van Limited","88413423","6.32","Equipment - Purchase","190343286","07/06/2017","Fleet Services","Fleet Management","R4000"
"Wolverhampton City Council","http://opendatacommunities.org/id/metropolitan-district-council/wolverhampton","705534","Midlands Truck & Van Limited","88413528","0.5","Equipment - Purchase","190343288","07/06/2017","Fleet Services","Fleet Management","R4000"
"Wolverhampton City Council","http://opendatacommunities.org/id/metropolitan-district-council/wolverhampton","705534","Midlands Truck & Van Limited","88413528","1.26","Equipment - Purchase","190343288","07/06/2017","Fleet Services","Fleet Management","R4000"
"Wolverhampton City Council","http://opendatacommunities.org/id/metropolitan-district-council/wolverhampton","705534","Midlands Truck & Van Limited","88413528","5.52","Equipment - Purchase","190343288","07/06/2017","Fleet Services","Fleet Management","R4000"
"Wolverhampton City Council","http://opendatacommunities.org/id/metropolitan-district-council/wolverhampton","705534","Midlands Truck & Van Limited","88413423","2.8","Equipment - Purchase","190343286","07/06/2017","Fleet Services","Fleet Management","R4000"
"Wolverhampton City Council","http://opendatacommunities.org/id/metropolitan-district-council/wolverhampton","705534","Midlands Truck & Van Limited","88413457","1.4","Equipment - Purchase","190343287","07/06/2017","Fleet Services","Fleet Management","R4000"
"Wolverhampton City Council","http://opendatacommunities.org/id/metropolitan-district-council/wolverhampton","705534","Midlands Truck & Van Limited","88414535","87.5","Equipment - Purchase","190347749","21/06/2017","Fleet Services","Fleet Management","R4000"
"Wolverhampton City Council","http://opendatacommunities.org/id/metropolitan-district-council/wolverhampton","705534","Midlands Truck & Van Limited","83590181","780","Services - Professional Fees","190349886","28/06/2017","Fleet Services","Fleet Management","R4400"
"Wolverhampton City Council","http://opendatacommunities.org/id/metropolitan-district-council/wolverhampton","705534","Midlands Truck & Van Limited","83590181","97","Services - Professional Fees","190349886","28/06/2017","Fleet Services","Fleet Management","R4400"
"Wolverhampton City Council","http://opendatacommunities.org/id/metropolitan-district-council/wolverhampton","705534","Midlands Truck & Van Limited","88415374","189","Equipment - Purchase","190349887","28/06/2017","Fleet Services","Fleet Management","R4000"
"Wolverhampton City Council","http://opendatacommunities.org/id/metropolitan-district-council/wolverhampton","705534","Midlands Truck & Van Limited","88415397","48.8","Equipment - Purchase","190349888","28/06/2017","Fleet Services","Fleet Management","R4000"
"Wolverhampton City Council","http://opendatacommunities.org/id/metropolitan-district-council/wolverhampton","705534","Midlands Truck & Van Limited","88414002","10.4","Equipment - Purchase","190343982","07/06/2017","Fleet Services","Fleet Management","R4000"
"Wolverhampton City Council","http://opendatacommunities.org/id/metropolitan-district-council/wolverhampton","705534","Midlands Truck & Van Limited","88414058","12.3","Equipment - Purchase","190343983","07/06/2017","Fleet Services","Fleet Management","R4000"
"Wolverhampton City Council","http://opendatacommunities.org/id/metropolitan-district-council/wolverhampton","705534","Midlands Truck & Van Limited","88413924","34.4","Equipment - Purchase","190343980","07/06/2017","Fleet Services","Fleet Management","R4000"
"Wolverhampton City Council","http://opendatacommunities.org/id/metropolitan-district-council/wolverhampton","705534","Midlands Truck & Van Limited","88413949","2.1","Equipment - Purchase","190343981","07/06/2017","Fleet Services","Fleet Management","R4000"
"Wolverhampton City Council","http://opendatacommunities.org/id/metropolitan-district-council/wolverhampton","705534","Midlands Truck & Van Limited","83589842","156","Services - Professional Fees","190346306","16/06/2017","Fleet Services","Fleet Management","R4400"
"Wolverhampton City Council","http://opendatacommunities.org/id/metropolitan-district-council/wolverhampton","705534","Midlands Truck & Van Limited","83589842","142.8","Services - Professional Fees","190346306","16/06/2017","Fleet Services","Fleet Management","R4400"
"Wolverhampton City Council","http://opendatacommunities.org/id/metropolitan-district-council/wolverhampton","705534","Midlands Truck & Van Limited","83589842","0.65","Services - Professional Fees","190346306","16/06/2017","Fleet Services","Fleet Management","R4400"
"Wolverhampton City Council","http://opendatacommunities.org/id/metropolitan-district-council/wolverhampton","705534","Midlands Truck & Van Limited","83589842","26.5","Services - Professional Fees","190346306","16/06/2017","Fleet Services","Fleet Management","R4400"
"Wolverhampton City Council","http://opendatacommunities.org/id/metropolitan-district-council/wolverhampton","705534","Midlands Truck & Van Limited","83589842","9.2","Services - Professional Fees","190346306","16/06/2017","Fleet Services","Fleet Management","R4400"
"Wolverhampton City Council","http://opendatacommunities.org/id/metropolitan-district-council/wolverhampton","705534","Midlands Truck & Van Limited","83589842","47.88","Services - Professional Fees","190346306","16/06/2017","Fleet Services","Fleet Management","R4400"
"Wolverhampton City Council","http://opendatacommunities.org/id/metropolitan-district-council/wolverhampton","705534","Midlands Truck & Van Limited","83589842","22.86","Services - Professional Fees","190346306","16/06/2017","Fleet Services","Fleet Management","R4400"
"Wolverhampton City Council","http://opendatacommunities.org/id/metropolitan-district-council/wolverhampton","705534","Midlands Truck & Van Limited","88415504","706","Equipment - Purchase","190346307","16/06/2017","Fleet Services","Fleet Management","R4000"
"Wolverhampton City Council","http://opendatacommunities.org/id/metropolitan-district-council/wolverhampton","705534","Midlands Truck & Van Limited","83589842","97.5","Services - Professional Fees","190346306","16/06/2017","Fleet Services","Fleet Management","R4400"
"Wolverhampton City Council","http://opendatacommunities.org/id/metropolitan-district-council/wolverhampton","705534","Midlands Truck & Van Limited","83589842","10.8","Services - Professional Fees","190346306","16/06/2017","Fleet Services","Fleet Management","R4400"
"Wolverhampton City Council","http://opendatacommunities.org/id/metropolitan-district-council/wolverhampton","705534","Midlands Truck & Van Limited","83589842","29.25","Services - Professional Fees","190346306","16/06/2017","Fleet Services","Fleet Management","R4400"
"Wolverhampton City Council","http://opendatacommunities.org/id/metropolitan-district-council/wolverhampton","705534","Midlands Truck & Van Limited","83589842","8.1","Services - Professional Fees","190346306","16/06/2017","Fleet Services","Fleet Management","R4400"
"Wolverhampton City Council","http://opendatacommunities.org/id/metropolitan-district-council/wolverhampton","705541","Midwest Decorators","2151","1,639.95","Construction and Conversion","130170724","30/06/2017","-","Corporate Asset Management","C1100"
"Wolverhampton City Council","http://opendatacommunities.org/id/metropolitan-district-council/wolverhampton","705541","Midwest Decorators","2151","310.05","Construction and Conversion","130170724","30/06/2017","-","Corporate Asset Management","C1100"
"Wolverhampton City Council","http://opendatacommunities.org/id/metropolitan-district-council/wolverhampton","705542","Midwest Electrical Services Limited","I12346","2,582.32","R&M - Departmental planned (external)","130173069","21/06/2017","Maintenance Programme","Civic Centre Repairs & Maintenance","R2001"
"Wolverhampton City Council","http://opendatacommunities.org/id/metropolitan-district-council/wolverhampton","705542","Midwest Electrical Services Limited","I12347","289.31","R&M - Departmental planned (external)","130173070","21/06/2017","Maintenance Programme","Civic Centre Repairs & Maintenance","R2001"
"Wolverhampton City Council","http://opendatacommunities.org/id/metropolitan-district-council/wolverhampton","705542","Midwest Electrical Services Limited","I12240","465.29","R&M - Departmental planned (external)","130172045","14/06/2017","Maintenance Programme","Centralised R&M","R2001"
"Wolverhampton City Council","http://opendatacommunities.org/id/metropolitan-district-council/wolverhampton","705542","Midwest Electrical Services Limited","I12235","102.37","R&M - Departmental planned (external)","130172040","14/06/2017","Maintenance Programme","Centralised R&M","R2001"
"Wolverhampton City Council","http://opendatacommunities.org/id/metropolitan-district-council/wolverhampton","705542","Midwest Electrical Services Limited","I12238","112.25","R&M - Departmental planned (external)","130172043","14/06/2017","Maintenance Programme","Centralised R&M","R2001"
"Wolverhampton City Council","http://opendatacommunities.org/id/metropolitan-district-council/wolverhampton","705542","Midwest Electrical Services Limited","I12231","21.43","R&M - Departmental planned (external)","130171821","14/06/2017","Maintenance Programme","Centralised R&M","R2001"
"Wolverhampton City Council","http://opendatacommunities.org/id/metropolitan-district-council/wolverhampton","705542","Midwest Electrical Services Limited","I12232","51.65","R&M - Departmental planned (external)","130171822","14/06/2017","Maintenance Programme","Centralised R&M","R2001"
"Wolverhampton City Council","http://opendatacommunities.org/id/metropolitan-district-council/wolverhampton","705542","Midwest Electrical Services Limited","I12241","35.09","R&M - Departmental planned (external)","130172046","14/06/2017","Maintenance Programme","Centralised R&M","R2001"
"Wolverhampton City Council","http://opendatacommunities.org/id/metropolitan-district-council/wolverhampton","705542","Midwest Electrical Services Limited","I12242","278.59","R&M - Departmental planned (external)","130172047","14/06/2017","Leisure Services","Aldersley Leisure Village","R2001"
"Wolverhampton City Council","http://opendatacommunities.org/id/metropolitan-district-council/wolverhampton","705542","Midwest Electrical Services Limited","I12268","3,890.00","Construction and Conversion","130172617","16/06/2017","-","Corporate Asset Management","C1100"
"Wolverhampton City Council","http://opendatacommunities.org/id/metropolitan-district-council/wolverhampton","705542","Midwest Electrical Services Limited","I12428","664.4","R&M - Departmental planned (external)","130174473","28/06/2017","Maintenance Programme","Centralised R&M","R2001"
"Wolverhampton City Council","http://opendatacommunities.org/id/metropolitan-district-council/wolverhampton","705542","Midwest Electrical Services Limited","I12264","21.43","R&M - Departmental planned (external)","130172614","16/06/2017","Maintenance Programme","Centralised R&M","R2001"
"Wolverhampton City Council","http://opendatacommunities.org/id/metropolitan-district-council/wolverhampton","705542","Midwest Electrical Services Limited","I12265","22.47","R&M - Departmental planned (external)","130172615","16/06/2017","Maintenance Programme","Centralised R&M","R2001"
"Wolverhampton City Council","http://opendatacommunities.org/id/metropolitan-district-council/wolverhampton","705542","Midwest Electrical Services Limited","I12270","2,291.25","R&M - Departmental planned (external)","130172619","16/06/2017","Maintenance Programme","Centralised R&M","R2001"
"Wolverhampton City Council","http://opendatacommunities.org/id/metropolitan-district-council/wolverhampton","705542","Midwest Electrical Services Limited","I12261","21.43","R&M - Departmental planned (external)","130172611","16/06/2017","Maintenance Programme","Centralised R&M","R2001"
"Wolverhampton City Council","http://opendatacommunities.org/id/metropolitan-district-council/wolverhampton","705542","Midwest Electrical Services Limited","I12233","920","R&M - Departmental planned (external)","130171823","21/06/2017","Maintenance Programme","Centralised R&M","R2001"
"Wolverhampton City Council","http://opendatacommunities.org/id/metropolitan-district-council/wolverhampton","705542","Midwest Electrical Services Limited","I12239","1,755.00","R&M - Departmental planned (external)","130172044","21/06/2017","Maintenance Programme","Centralised R&M","R2001"
"Wolverhampton City Council","http://opendatacommunities.org/id/metropolitan-district-council/wolverhampton","705542","Midwest Electrical Services Limited","I12524","530","R&M - Departmental planned (external)","130175730","28/06/2017","Maintenance Programme","Centralised R&M","R2001"
"Wolverhampton City Council","http://opendatacommunities.org/id/metropolitan-district-council/wolverhampton","705542","Midwest Electrical Services Limited","I12525","648","R&M - Departmental planned (external)","130175731","28/06/2017","Maintenance Programme","Centralised R&M","R2001"
"Wolverhampton City Council","http://opendatacommunities.org/id/metropolitan-district-council/wolverhampton","705542","Midwest Electrical Services Limited","I12526","1,724.00","R&M - Departmental planned (external)","130175732","28/06/2017","Maintenance Programme","Centralised R&M","R2001"
"Wolverhampton City Council","http://opendatacommunities.org/id/metropolitan-district-council/wolverhampton","705542","Midwest Electrical Services Limited","I12528","960","R&M - Departmental planned (external)","130175734","28/06/2017","Maintenance Programme","Centralised R&M","R2001"
"Wolverhampton City Council","http://opendatacommunities.org/id/metropolitan-district-council/wolverhampton","705542","Midwest Electrical Services Limited","I12530","860","R&M - Departmental planned (external)","130175735","28/06/2017","Maintenance Programme","Centralised R&M","R2001"
"Wolverhampton City Council","http://opendatacommunities.org/id/metropolitan-district-council/wolverhampton","705542","Midwest Electrical Services Limited","I12491","960","Construction and Conversion","130175024","28/06/2017","-","Corporate Asset Management","C1100"
"Wolverhampton City Council","http://opendatacommunities.org/id/metropolitan-district-council/wolverhampton","705542","Midwest Electrical Services Limited","I12425","851.25","Construction and Conversion","130174470","28/06/2017","-","Corporate Asset Management","C1100"
"Wolverhampton City Council","http://opendatacommunities.org/id/metropolitan-district-council/wolverhampton","705542","Midwest Electrical Services Limited","I12527","174","R&M - Departmental planned (external)","130175733","28/06/2017","Maintenance Programme","Centralised R&M","R2001"
"Wolverhampton City Council","http://opendatacommunities.org/id/metropolitan-district-council/wolverhampton","705542","Midwest Electrical Services Limited","I11793","60","R&M - Departmental planned (external)","130167011","23/06/2017","Visitor Economy","Jane & Louise Wilson - NPO ACE WAG","R2001"
"Wolverhampton City Council","http://opendatacommunities.org/id/metropolitan-district-council/wolverhampton","705542","Midwest Electrical Services Limited","I11860","60","R&M - Departmental planned (external)","130168985","23/06/2017","Maintenance Programme","Centralised R&M","R2001"
"Wolverhampton City Council","http://opendatacommunities.org/id/metropolitan-district-council/wolverhampton","705542","Midwest Electrical Services Limited","I12498","80.34","R&M - Departmental planned (external)","130175262","28/06/2017","Maintenance Programme","Centralised R&M","R2001"
"Wolverhampton City Council","http://opendatacommunities.org/id/metropolitan-district-council/wolverhampton","705542","Midwest Electrical Services Limited","I12472","28,029.90","R&M - Departmental planned (external)","130174852","28/06/2017","Maintenance Programme","Centralised R&M","R2001"
"Wolverhampton City Council","http://opendatacommunities.org/id/metropolitan-district-council/wolverhampton","705542","Midwest Electrical Services Limited","I12236","32.15","R&M - Departmental planned (external)","130172041","14/06/2017","Maintenance Programme","Centralised R&M","R2001"
"Wolverhampton City Council","http://opendatacommunities.org/id/metropolitan-district-council/wolverhampton","705542","Midwest Electrical Services Limited","I12237","128.51","R&M - Departmental planned (external)","130172042","14/06/2017","Maintenance Programme","Centralised R&M","R2001"
"Wolverhampton City Council","http://opendatacommunities.org/id/metropolitan-district-council/wolverhampton","705542","Midwest Electrical Services Limited","I12234","416.21","R&M - Departmental planned (external)","130172039","14/06/2017","Bereavement Services","Crematorium","R2001"
"Wolverhampton City Council","http://opendatacommunities.org/id/metropolitan-district-council/wolverhampton","705542","Midwest Electrical Services Limited","I12267","7,516.70","R&M - Departmental planned (external)","130172616","16/06/2017","Markets","Wholesale Market Facilities Management","R2001"
"Wolverhampton City Council","http://opendatacommunities.org/id/metropolitan-district-council/wolverhampton","705542","Midwest Electrical Services Limited","I12350","2,760.00","R&M - Departmental planned (external)","130173166","21/06/2017","Maintenance Programme","Centralised R&M","R2001"
"Wolverhampton City Council","http://opendatacommunities.org/id/metropolitan-district-council/wolverhampton","705542","Midwest Electrical Services Limited","I12536","100.81","R&M - Departmental planned (external)","130175923","28/06/2017","Maintenance Programme","Centralised R&M","R2001"
"Wolverhampton City Council","http://opendatacommunities.org/id/metropolitan-district-council/wolverhampton","705542","Midwest Electrical Services Limited","I12538","561.73","R&M - Departmental planned (external)","130175925","28/06/2017","Maintenance Programme","Centralised R&M","R2001"
"Wolverhampton City Council","http://opendatacommunities.org/id/metropolitan-district-council/wolverhampton","705542","Midwest Electrical Services Limited","I12537","270","R&M - Departmental planned (external)","130175924","28/06/2017","Leisure Services","Aldersley Leisure Village","R2001"
"Wolverhampton City Council","http://opendatacommunities.org/id/metropolitan-district-council/wolverhampton","705542","Midwest Electrical Services Limited","I12534","54.66","R&M - Departmental planned (external)","130175921","28/06/2017","Maintenance Programme","Centralised R&M","R2001"
"Wolverhampton City Council","http://opendatacommunities.org/id/metropolitan-district-council/wolverhampton","705542","Midwest Electrical Services Limited","I12520","27.61","R&M - Departmental planned (external)","130175726","28/06/2017","Maintenance Programme","Centralised R&M","R2001"
"Wolverhampton City Council","http://opendatacommunities.org/id/metropolitan-district-council/wolverhampton","705542","Midwest Electrical Services Limited","I12521","30.43","R&M - Departmental planned (external)","130175727","28/06/2017","Maintenance Programme","Centralised R&M","R2001"
"Wolverhampton City Council","http://opendatacommunities.org/id/metropolitan-district-council/wolverhampton","705542","Midwest Electrical Services Limited","I12522","127.73","R&M - Departmental planned (external)","130175728","28/06/2017","Maintenance Programme","Centralised R&M","R2001"
"Wolverhampton City Council","http://opendatacommunities.org/id/metropolitan-district-council/wolverhampton","705542","Midwest Electrical Services Limited","I12523","138.25","R&M - Departmental planned (external)","130175729","28/06/2017","Maintenance Programme","Centralised R&M","R2001"
"Wolverhampton City Council","http://opendatacommunities.org/id/metropolitan-district-council/wolverhampton","705542","Midwest Electrical Services Limited","I12539","257.9","R&M - Departmental planned (external)","130175926","28/06/2017","Maintenance Programme","Centralised R&M","R2001"
"Wolverhampton City Council","http://opendatacommunities.org/id/metropolitan-district-council/wolverhampton","705542","Midwest Electrical Services Limited","I12426","1,141.70","Construction and Conversion","130174471","28/06/2017","-","Corporate Asset Management","C1100"
"Wolverhampton City Council","http://opendatacommunities.org/id/metropolitan-district-council/wolverhampton","705542","Midwest Electrical Services Limited","I12531","1,430.00","R&M - Departmental planned (external)","130175736","28/06/2017","Maintenance Programme","Centralised R&M","R2001"
"Wolverhampton City Council","http://opendatacommunities.org/id/metropolitan-district-council/wolverhampton","705542","Midwest Electrical Services Limited","I12474","630","R&M - Departmental planned (external)","130174854","28/06/2017","Maintenance Programme","Centralised R&M","R2001"
"Wolverhampton City Council","http://opendatacommunities.org/id/metropolitan-district-council/wolverhampton","705542","Midwest Electrical Services Limited","I12473","943","Construction and Conversion","130174853","28/06/2017","-","Corporate Asset Management","C1100"
"Wolverhampton City Council","http://opendatacommunities.org/id/metropolitan-district-council/wolverhampton","705542","Midwest Electrical Services Limited","I12494","34.43","R&M - Departmental planned (external)","130175259","28/06/2017","Estates and Valuations","Industrial Premises ; Fordhouse Road","R2001"
"Wolverhampton City Council","http://opendatacommunities.org/id/metropolitan-district-council/wolverhampton","705542","Midwest Electrical Services Limited","I12475","32.15","R&M - Departmental planned (external)","130175020","28/06/2017","Facilities Management","Magistrates","R2001"
"Wolverhampton City Council","http://opendatacommunities.org/id/metropolitan-district-council/wolverhampton","705542","Midwest Electrical Services Limited","I12476","56.39","R&M - Departmental planned (external)","130175021","28/06/2017","Maintenance Programme","Centralised R&M","R2001"
"Wolverhampton City Council","http://opendatacommunities.org/id/metropolitan-district-council/wolverhampton","705542","Midwest Electrical Services Limited","I12497","21.43","R&M - Departmental planned (external)","130175261","28/06/2017","Facilities Management","i10 Facilities Management","R2001"
"Wolverhampton City Council","http://opendatacommunities.org/id/metropolitan-district-council/wolverhampton","705542","Midwest Electrical Services Limited","I12499","21.43","R&M - Departmental planned (external)","130175263","28/06/2017","Maintenance Programme","Centralised R&M","R2001"
"Wolverhampton City Council","http://opendatacommunities.org/id/metropolitan-district-council/wolverhampton","705542","Midwest Electrical Services Limited","I12535","25.67","R&M - Departmental planned (external)","130175922","28/06/2017","Bereavement Services","Cemeteries","R2001"
"Wolverhampton City Council","http://opendatacommunities.org/id/metropolitan-district-council/wolverhampton","705542","Midwest Electrical Services Limited","I12533","21.43","R&M - Departmental planned (external)","130175738","28/06/2017","Skills","Connexions Contract","R2001"
"Wolverhampton City Council","http://opendatacommunities.org/id/metropolitan-district-council/wolverhampton","705542","Midwest Electrical Services Limited","I12501","180.24","R&M - Departmental planned (external)","130175264","28/06/2017","Estates and Valuations","Industrial Premises ; Landport Road","R2001"
"Wolverhampton City Council","http://opendatacommunities.org/id/metropolitan-district-council/wolverhampton","705542","Midwest Electrical Services Limited","I12496","52.69","R&M - Departmental planned (external)","130175260","28/06/2017","Facilities Management","Magistrates","R2001"
"Wolverhampton City Council","http://opendatacommunities.org/id/metropolitan-district-council/wolverhampton","705542","Midwest Electrical Services Limited","I12490","118.29","R&M - Departmental planned (external)","130175023","28/06/2017","Maintenance Programme","Centralised R&M","R2001"
"Wolverhampton City Council","http://opendatacommunities.org/id/metropolitan-district-council/wolverhampton","705542","Midwest Electrical Services Limited","I12487","390.82","R&M - Departmental planned (external)","130175022","28/06/2017","Maintenance Programme","Centralised R&M","R2001"
"Wolverhampton City Council","http://opendatacommunities.org/id/metropolitan-district-council/wolverhampton","705542","Midwest Electrical Services Limited","I12532","2,656.00","R&M - Departmental planned (external)","130175737","28/06/2017","Maintenance Programme","Centralised R&M","R2001"
"Wolverhampton City Council","http://opendatacommunities.org/id/metropolitan-district-council/wolverhampton","705542","Midwest Electrical Services Limited","I11783","80.33","R&M - Departmental planned (external)","130167001","21/06/2017","Facilities Management","Magistrates","R2001"
"Wolverhampton City Council","http://opendatacommunities.org/id/metropolitan-district-council/wolverhampton","705542","Midwest Electrical Services Limited","I12362","3,258.00","Construction and Conversion","130173167","21/06/2017","-","Corporate Asset Management","C1100"
"Wolverhampton City Council","http://opendatacommunities.org/id/metropolitan-district-council/wolverhampton","705542","Midwest Electrical Services Limited","I12348","1,248.00","Construction and Conversion","130173071","21/06/2017","-","Corporate Asset Management","C1100"
"Wolverhampton City Council","http://opendatacommunities.org/id/metropolitan-district-council/wolverhampton","705542","Midwest Electrical Services Limited","I12230","96.73","R&M - Departmental planned (external)","130171820","14/06/2017","Maintenance Programme","Centralised R&M","R2001"
"Wolverhampton City Council","http://opendatacommunities.org/id/metropolitan-district-council/wolverhampton","705542","Midwest Electrical Services Limited","I12227","31.38","R&M - Departmental planned (external)","130171817","14/06/2017","Maintenance Programme","Centralised R&M","R2001"
"Wolverhampton City Council","http://opendatacommunities.org/id/metropolitan-district-council/wolverhampton","705542","Midwest Electrical Services Limited","I12228","28.33","R&M - Departmental planned (external)","130171818","14/06/2017","Maintenance Programme","Centralised R&M","R2001"
"Wolverhampton City Council","http://opendatacommunities.org/id/metropolitan-district-council/wolverhampton","705542","Midwest Electrical Services Limited","I12226","49.03","R&M - Departmental planned (external)","130171816","14/06/2017","Maintenance Programme","Centralised R&M","R2001"
"Wolverhampton City Council","http://opendatacommunities.org/id/metropolitan-district-council/wolverhampton","705542","Midwest Electrical Services Limited","I12225","49.63","R&M - Departmental planned (external)","130171815","14/06/2017","Maintenance Programme","Centralised R&M","R2001"
"Wolverhampton City Council","http://opendatacommunities.org/id/metropolitan-district-council/wolverhampton","705542","Midwest Electrical Services Limited","I12229","306.23","R&M - Departmental planned (external)","130171819","14/06/2017","Maintenance Programme","Centralised R&M","R2001"
"Wolverhampton City Council","http://opendatacommunities.org/id/metropolitan-district-council/wolverhampton","705542","Midwest Electrical Services Limited","I12269","576.68","Construction and Conversion","130172618","23/06/2017","-","Corporate Asset Management","C1100"
"Wolverhampton City Council","http://opendatacommunities.org/id/metropolitan-district-council/wolverhampton","705542","Midwest Electrical Services Limited","I12259","167.86","R&M - Departmental planned (external)","130172609","16/06/2017","Facilities Management","Magistrates","R2001"
"Wolverhampton City Council","http://opendatacommunities.org/id/metropolitan-district-council/wolverhampton","705542","Midwest Electrical Services Limited","I12262","51.65","R&M - Departmental planned (external)","130172612","16/06/2017","Maintenance Programme","Centralised R&M","R2001"
"Wolverhampton City Council","http://opendatacommunities.org/id/metropolitan-district-council/wolverhampton","705542","Midwest Electrical Services Limited","I12263","34.43","R&M - Departmental planned (external)","130172613","16/06/2017","Maintenance Programme","Centralised R&M","R2001"
"Wolverhampton City Council","http://opendatacommunities.org/id/metropolitan-district-council/wolverhampton","705542","Midwest Electrical Services Limited","I12257","21.43","R&M - Departmental planned (external)","130172607","16/06/2017","Maintenance Programme","Centralised R&M","R2001"
"Wolverhampton City Council","http://opendatacommunities.org/id/metropolitan-district-council/wolverhampton","705542","Midwest Electrical Services Limited","I12258","21.43","R&M - Departmental planned (external)","130172608","16/06/2017","Maintenance Programme","Centralised R&M","R2001"
"Wolverhampton City Council","http://opendatacommunities.org/id/metropolitan-district-council/wolverhampton","705542","Midwest Electrical Services Limited","I12260","21.43","R&M - Departmental planned (external)","130172610","16/06/2017","Maintenance Programme","Centralised R&M","R2001"
"Wolverhampton City Council","http://opendatacommunities.org/id/metropolitan-district-council/wolverhampton","705543","Arnold Clark Automobiles Ltd t/a M M Factors","351043-BI","16.56","Equipment - Purchase","190347746","21/06/2017","Fleet Services","Fleet Management","R4000"
"Wolverhampton City Council","http://opendatacommunities.org/id/metropolitan-district-council/wolverhampton","705543","Arnold Clark Automobiles Ltd t/a M M Factors","344805-BI","8.28","Equipment - Purchase","190344597","09/06/2017","Fleet Services","Fleet Management","R4000"
"Wolverhampton City Council","http://opendatacommunities.org/id/metropolitan-district-council/wolverhampton","705543","Arnold Clark Automobiles Ltd t/a M M Factors","348572-BI","12.42","Equipment - Purchase","190344598","09/06/2017","Fleet Services","Fleet Management","R4000"
"Wolverhampton City Council","http://opendatacommunities.org/id/metropolitan-district-council/wolverhampton","705548","Mike Tivey","SFH8/4/17","280","Services - Supplies and Services to service users","130176990","23/06/2017","Early Intervention","EIP Locality 8 � Children�s Village","R4408"
"Wolverhampton City Council","http://opendatacommunities.org/id/metropolitan-district-council/wolverhampton","705579","Misco","11344435","4,550.00","Computing - Purchase of Software","130174042","21/06/2017","Adult Education","ICT Services","R4531"
"Wolverhampton City Council","http://opendatacommunities.org/id/metropolitan-district-council/wolverhampton","705592","Mitchell Diesel Limited","121573","3.37","Equipment - Purchase","190347734","21/06/2017","Fleet Services","Fleet Management","R4000"
"Wolverhampton City Council","http://opendatacommunities.org/id/metropolitan-district-council/wolverhampton","705592","Mitchell Diesel Limited","121573","11.45","Equipment - Purchase","190347734","21/06/2017","Fleet Services","Fleet Management","R4000"
"Wolverhampton City Council","http://opendatacommunities.org/id/metropolitan-district-council/wolverhampton","705592","Mitchell Diesel Limited","121573","5.49","Equipment - Purchase","190347734","21/06/2017","Fleet Services","Fleet Management","R4000"
"Wolverhampton City Council","http://opendatacommunities.org/id/metropolitan-district-council/wolverhampton","705592","Mitchell Diesel Limited","120791","10.58","Equipment - Purchase","190343237","07/06/2017","Fleet Services","Fleet Management","R4000"
"Wolverhampton City Council","http://opendatacommunities.org/id/metropolitan-district-council/wolverhampton","705609","Mobile Mini UK Limited","7000429255","98","Equipment - Hire","130174044","21/06/2017","Environmental Maintenance","Parks - Ranger Service","R4001"
"Wolverhampton City Council","http://opendatacommunities.org/id/metropolitan-district-council/wolverhampton","705609","Mobile Mini UK Limited","7000429255","145","Equipment - Hire","130174044","21/06/2017","Environmental Maintenance","Parks - Ranger Service","R4001"
"Wolverhampton City Council","http://opendatacommunities.org/id/metropolitan-district-council/wolverhampton","705609","Mobile Mini UK Limited","7000429255","145","Equipment - Hire","130174044","21/06/2017","Environmental Maintenance","Parks - Ranger Service","R4001"
"Wolverhampton City Council","http://opendatacommunities.org/id/metropolitan-district-council/wolverhampton","705609","Mobile Mini UK Limited","7000427980","50","Hire of Plant","130174043","16/06/2017","Environmental Maintenance","Ground Maintenance West","R3201"
"Wolverhampton City Council","http://opendatacommunities.org/id/metropolitan-district-council/wolverhampton","705627","Monterpoint Technologies","1386","25,000.00","Subscriptions","130173822","21/06/2017","Adult Education","Service Wide","R4701"
"Wolverhampton City Council","http://opendatacommunities.org/id/metropolitan-district-council/wolverhampton","705634","Morelock Signs Limited","196029","33.84","Materials","130174247","28/06/2017","Street Lighting","Signs Illuminated","R4007"
"Wolverhampton City Council","http://opendatacommunities.org/id/metropolitan-district-council/wolverhampton","705634","Morelock Signs Limited","196003","93.2","Materials","130174246","28/06/2017","Environmental Maintenance","Parks / Open Spaces - Repairs & Maintenance","R4007"
"Wolverhampton City Council","http://opendatacommunities.org/id/metropolitan-district-council/wolverhampton","705634","Morelock Signs Limited","196029","27.29","Materials","130174247","28/06/2017","Street Lighting","Signs Illuminated","R4007"
"Wolverhampton City Council","http://opendatacommunities.org/id/metropolitan-district-council/wolverhampton","705634","Morelock Signs Limited","196029","22.3","Materials","130174247","28/06/2017","Street Lighting","Signs Illuminated","R4007"
"Wolverhampton City Council","http://opendatacommunities.org/id/metropolitan-district-council/wolverhampton","705634","Morelock Signs Limited","196031","135.44","Construction and Conversion","130174248","28/06/2017","-","Integrated Transport","C1100"
"Wolverhampton City Council","http://opendatacommunities.org/id/metropolitan-district-council/wolverhampton","705634","Morelock Signs Limited","196033","236.24","TPP - Maintenance on Principal Roads","130174249","28/06/2017","Transportation","Bridges & Subways","R5700"
"Wolverhampton City Council","http://opendatacommunities.org/id/metropolitan-district-council/wolverhampton","705634","Morelock Signs Limited","195781","183.53","Signage and Labels","130173314","16/06/2017","Transportation","Bridges & Subways","R4009"
"Wolverhampton City Council","http://opendatacommunities.org/id/metropolitan-district-council/wolverhampton","705634","Morelock Signs Limited","195257","6.59","Materials","130171592","02/06/2017","Street Lighting","Signs Illuminated","R4007"
"Wolverhampton City Council","http://opendatacommunities.org/id/metropolitan-district-council/wolverhampton","705634","Morelock Signs Limited","195262","1,937.52","Construction and Conversion","130171593","02/06/2017","-","Integrated Transport","C1100"
"Wolverhampton City Council","http://opendatacommunities.org/id/metropolitan-district-council/wolverhampton","705640","Morris & Alexander Limited","24361","3,903.00","Equipment - Purchase","130173823","21/06/2017","Independent Living Service","Independent Living Service","R4000"
"Wolverhampton City Council","http://opendatacommunities.org/id/metropolitan-district-council/wolverhampton","705644","Moseley Park School","P14611720170623","600","Grant Payments to Individuals","190348775","28/06/2017","Looked After Children","LAC Education Team (LACE)","R6402"
"Wolverhampton City Council","http://opendatacommunities.org/id/metropolitan-district-council/wolverhampton","705644","Moseley Park School","P14611720170623","600","Grant Payments to Individuals","190348775","28/06/2017","Looked After Children","LAC Education Team (LACE)","R6402"
